Cogmind - Beta 15 @@@ ROGUE MODE // 2025.07.15 @ 02:47:39 Player: cptwinky Result: Destroyed by S-43 Plague with Heavy Machine Gun Performance ------------- Evolutions (9) 4500 Regions Visited (32) 6400 Robots Destroyed (425) 2125 Value Destroyed (16395) 16395 Prototype IDs (123) 2460 Alien Tech Used (3) 600 Bonus (7420) 7420 TOTAL SCORE: 39900 Bonus ------- High Alert Combat Kills 2056 Follower Combat Kills 3747 Awakened Behemoth Slayer 1000 Network Hubs Disabled 600 Met Data Miner 300 Met Imprinter 300 Was Imprinted 300 Met Zhirov 300 Built Enhanced Grunts 300 A7 Reached Mainframe 300 Met R17 at Cetus 500 Scanned by Researcher 500 Friendly Fire -2783 Cogmind --------- Core Integrity 0/1600 Matter 290/300 Energy 99/100 System Corruption 17% Temperature Cool (0) Movement Core (50) Location -1/Access Parts ------- > --- POWER (3) -------- (None) > --- PROPULSION (8) --- (None) > --- UTILITY (12) ----- Advanced Signal Interpreter Advanced Target Analyzer Graphene Brace > --- WEAPON (3) ------- (None) > --- INVENTORY (5) ---- Long-range Terrain Scanner Hacking Drone Bay (1/1) Compact HERF Cannon Enhanced Nova Cannon CR-A16's Behemoth Slayer Peak State ------------ > --- POWER ------------ Micro Fission Core Heavy Antimatter Reactor Cooled Antimatter Reactor > --- PROPULSION ------- Improved Antigrav System Improved Antigrav System Combat Antigrav System Combat Antigrav System Combat Antigrav System Antigrav Array Combat Linear Gravjet > --- UTILITY ---------- Coolant Network Large Storage Unit Experimental Sensor Array Advanced Signal Interpreter Core Analyzer Heavy Regenerative Plating Graphene Brace Advanced EM Shield > --- WEAPON ----------- Plasma Sword Nanosword > --- INVENTORY -------- Micro Fission Core Zionite Biocell Improved Matter Compressor Long-range Terrain Scanner Advanced Transmission Jammer AEGIS Remote Shield Experimental Hacking Suite Advanced Component Analysis Suite Hacking Drone Bay Dimensional Node Initializer Compact HERF Cannon Enhanced Nova Cannon Enhanced Gamma Bomb Array Plasma Lance CR-A16's Behemoth Slayer [Rating: 182] Favorites ----------- Power Makeshift Power Source Engine Makeshift Power Source Power Core Fission Core Reactor Micro Antimatter Reactor Propulsion Combat Airjet Treads Light Treads Leg Aluminum Leg Hover Unit Combat Airjet Flight Unit Xenon Bombardment Thruster Utility Core Analyzer Device Experimental Sensor Array Storage Large Storage Unit Processor Core Analyzer Hackware System Shield Protection Centrium Medium Armor Plating Weapon Axe Energy Gun Small Laser Energy Cannon Enhanced Nova Cannon Ballistic Gun Heavy Assault Rifle Ballistic Cannon Hypervelocity Mass Driver Launcher Smartbomb Launcher Special Weapon Improved Remote Datajack Impact Weapon Great Maul Slashing Weapon Axe Piercing Weapon Kinetic Spear Special Melee Weapon Advanced Datajack Build | -11 -10 -10 -9 -9 -8 -7 -7 -7 -7 -6 -6 -6 -6 -6 -6 -6 -5 -5 -5 -5 -5 -5 -4 -4 -4 -4 -3 -3 -3 -2 -2 -1 ------- Run | Yrd Mat Min Mat Min Mat Fac Low Low Dat Pro Fac Was Fac Low Low Zio Pro Fac Ext Cet Arc Hub Fac Upp Upp Zhi Pro Res Tes Res Qua Acc Slots Evolved 18 | . . . 2 . 2 2 . . . . 2 . . . . . . 2 . . . . 2 . . . . 2 . 2 . 2 Power 1 | . . . . . . . . . . . 1 . . . . . . . . . . . . . . . . . . . . . Propulsion 6 | . . . 1 . . 1 . . . . 1 . . . . . . 1 . . . . . . . . . 1 . 1 . . Utility 10 | . . . 1 . 2 1 . . . . . . . . . . . 1 . . . . 1 . . . . 1 . 1 . 2 Weapon 1 | . . . . . . . . . . . . . . . . . . . . . . . 1 . . . . . . . . . Parts Attached 328 | 6 5 3 30 9 30 21 . 1 . 5 6 1 4 6 1 7 1 21 18 11 6 2 29 . 3 3 2 37 15 19 4 22 Power 51 | 1 1 . 2 . 2 3 . . . . 2 . . 1 1 2 . 6 4 . . . 3 . 1 1 . 10 4 4 . 3 Engine 20 | 1 1 . 2 . 2 1 . . . . 1 . . 1 . 2 . 4 2 . . . 1 . . . . . . . . 2 Core 12 | . . . . . . 2 . . . . 1 . . . 1 . . 1 2 . . . . . . . . . 2 2 . 1 Reactor 19 | . . . . . . . . . . . . . . . . . . 1 . . . . 2 . 1 1 . 10 2 2 . . Propulsion 96 | 2 . . 10 1 17 7 . . . 2 2 . 1 . . . . 4 4 3 3 2 7 . . . 1 6 2 6 1 15 Treads 34 | 2 . . 9 1 17 . . . . . . . . . . . . . 2 3 . . . . . . . . . . . . Leg 1 | . . . 1 . . . . . . . . . . . . . . . . . . . . . . . . . . . . . Wheel . | . . . . . . . . . . . . . . . . . . . . . . . . . . . . . . . . . Hover 58 | . . . . . . 7 . . . 2 2 . 1 . . . . 4 2 . 3 2 7 . . . 1 6 2 6 1 12 Flight 3 | . . . . . . . . . . . . . . . . . . . . . . . . . . . . . . . . 3 Utility 123 | 1 2 1 10 5 5 8 . . . 1 2 . 1 5 . 4 . 10 7 5 1 . 15 . 2 2 1 18 6 6 3 2 Device 53 | . 1 . 2 1 1 2 . . . 1 . . . 2 . 2 . 3 5 1 1 . 9 . 1 2 . 10 4 4 1 . Storage 11 | 1 1 . 2 . . 1 . . . . . . 1 . . 1 . 1 . . . . . . . . . 1 . 2 . . Processor 11 | . . . 2 . 2 1 . . . . 1 . . . . . . . . . . . . . 1 . . 2 . . 1 1 Hackware 5 | . . . . . 1 . . . . . . . . . . . . 2 . . . . 1 . . . . . . . . 1 Protection 43 | . . 1 4 4 1 4 . . . . 1 . . 3 . 1 . 4 2 4 . . 5 . . . 1 5 2 . 1 . Artifact . | . . . . . . . . . . . . . . . . . . . . . . . . . . . . . . . . . Weapon 58 | 2 2 2 8 3 6 3 . 1 . 2 . 1 2 . . 1 1 1 3 3 2 . 4 . . . . 3 3 3 . 2 Energy Gun 6 | 2 . . 3 . . . . . . . . . . . . . . . . . . . . . . . . . . 1 . . Energy Cannon 4 | . . . . . . . . . . . . . . . . . . 1 . 1 . . . . . . . 1 . 1 . . Ballistic Gun 15 | . 2 1 4 1 3 . . . . . . 1 1 . . . . . . 2 . . . . . . . . . . . . Ballistic Cannon 1 | . . . . . . . . . . . . . . . . . . . . . . . 1 . . . . . . . . . Launcher 8 | . . 1 . 1 . 1 . 1 . . . . . . . . 1 . 1 . . . . . . . . . 1 1 . . Special Weapon 3 | . . . . 1 . . . . . . . . . . . . . . 1 . 1 . . . . . . . . . . . Impact Weapon 4 | . . . 1 . . . . . . . . . . . . 1 . . . . . . 2 . . . . . . . . . Slashing Weapon 10 | . . . . . 1 2 . . . 2 . . 1 . . . . . . . . . . . . . . 2 1 . . 1 Piercing Weapon 4 | . . . . . . . . . . . . . . . . . . . 1 . . . 1 . . . . . 1 . . 1 Special Melee Weapon 3 | . . . . . 2 . . . . . . . . . . . . . . . 1 . . . . . . . . . . . Unidentified Prototypes 37 | . . . 2 . 1 2 . . . . . . . 1 . 1 . 5 . 3 . 2 4 1 . 2 . 1 6 5 1 . Parts Lost 105 | . 1 . 2 6 3 11 . 1 . . . . 1 . . . . 6 9 . . . 4 . . . . 9 7 4 6 35 Power 19 | . 1 . 1 . . 1 . . . . . . . . . . . 3 2 . . . 2 . . . . 1 2 . 2 4 Propulsion 36 | . . . 1 1 . 4 . . . . . . 1 . . . . 1 4 . . . 1 . . . . . . 1 2 20 Utility 34 | . . . . 4 2 3 . 1 . . . . . . . . . 1 2 . . . . . . . . 6 5 2 1 7 Weapon 16 | . . . . 1 1 3 . . . . . . . . . . . 1 1 . . . 1 . . . . 2 . 1 1 4 Highest Loss Streak 17 | . 1 . 1 3 1 9 . 1 . . . . 1 . . . . 3 3 . . . 2 . . . . 3 4 2 3 17 To Critical Strikes . | . . . . . . . . . . . . . . . . . . . . . . . . . . . . . . . . . Average Backups 13 | 2 6 10 17 18 19 12 9 9 8 8 8 9 9 9 9 12 15 13 11 13 11 13 13 14 14 15 15 14 14 14 14 10 Power . | . . . . 1 . . 1 1 1 1 . . . . . . . . . . . . . . 1 1 1 . . . . . Propulsion 1 | 1 3 4 4 3 5 2 . . . . . 1 1 1 1 1 1 . . 2 . 1 . . 1 1 . 1 . . . . Utility 5 | . . 1 4 5 5 5 4 4 4 4 4 4 4 4 5 6 8 7 7 8 6 6 6 5 6 6 6 7 8 9 8 4 Weapon 4 | . 2 5 7 7 6 3 3 2 3 2 2 3 3 3 3 4 5 4 3 3 4 5 4 5 4 4 4 2 2 4 5 5 Tool/Special . | . . . . . . . . . . . . . . . . . . . . . . . . . . . . . . . . . Unused Backups 50 | . 5 . 10 1 6 6 1 . . . 1 . . 1 1 1 . 3 . 1 . . 1 . 1 . . 3 1 1 1 5 Power 4 | . . . 1 . 1 1 . . . . . . . . . . . . . . . . . . . . . 1 . . . . Propulsion 7 | . 1 . 3 1 2 . . . . . . . . . . . . . . . . . . . . . . . . . . . Utility 19 | . . . 3 . 1 3 . . . . . . . 1 . 1 . 2 . 1 . . 1 . 1 . . 1 1 1 1 1 Weapon 18 | . 4 . 3 . 2 2 1 . . . 1 . . . 1 . . . . . . . . . . . . 1 . . . 3 Tool/Special 2 | . . . . . . . . . . . . . . . . . . 1 . . . . . . . . . . . . . 1 Average Slot Usage (%) 90 | . 95 100 99 97 98 85 92 92 90 97 93 93 92 85 85 86 86 88 84 79 93 93 88 85 84 83 84 89 89 84 69 53 Engine 6 | . 14 14 10 11 9 4 7 7 7 7 7 6 6 6 9 11 13 9 5 5 5 5 5 . . . . . . . . 1 Core 1 | . . . . . . 2 . . . . 4 6 6 5 3 1 . 1 4 5 5 5 . . . . . . 4 7 2 . Reactor 1 | . . . . . . . . . . . . . . . . . . . . . . . 2 5 5 5 5 10 7 4 4 1 Treads 9 | . 28 28 32 33 27 10 . . . . . . . . . . . . . 14 3 . . . . . . . . . . . Hover 17 | . . . . . . 15 30 30 30 30 26 26 25 20 20 20 20 24 22 . 25 29 30 30 30 30 30 28 27 29 23 15 Device 8 | . 9 10 . 4 8 7 6 5 7 6 6 6 6 6 5 3 5 6 10 5 9 8 10 9 9 8 9 14 15 15 13 11 Storage 6 | . 14 14 11 11 9 7 7 7 7 7 6 6 6 6 6 6 6 5 5 5 5 5 4 5 5 5 5 4 4 4 4 2 Processor 13 | . . . 10 . 9 18 23 23 23 23 20 20 20 20 20 20 20 17 17 17 17 17 15 15 15 15 15 11 9 8 9 4 Hackware 1 | . . . . . 7 . . . . . . . . . . . . 3 . . . . . . . . . . . . . 2 Protection 8 | . . 3 10 14 9 10 7 8 7 7 6 6 6 4 6 9 6 6 5 10 6 7 9 10 10 10 10 8 6 4 4 . Ballistic Gun 6 | . 7 27 21 21 15 . . . . . . 5 . 1 . . . . . 4 5 6 . . . . . . . . . . Slashing Weapon 4 | . . . . . . 6 6 6 2 12 13 6 12 10 12 13 12 9 4 1 1 3 2 . . . . 7 8 7 5 5 Peak Build Rating 182 | 6 8 9 19 21 40 55 58 59 59 59 71 73 71 73 73 73 73 84 80 114 110 111 120 112 113 111 113 164 163 182 182 166 Average Rating 72 | 4 6 8 15 18 32 47 56 57 53 56 69 72 67 69 72 67 72 79 66 81 97 104 100 108 106 107 109 144 156 172 148 111 On Entrance 74 | . 6 8 9 18 21 40 53 53 59 53 57 71 71 65 68 73 69 73 71 56 108 101 107 107 112 108 111 111 160 138 182 133 Naked Turns . | . . . . . . . . . . . . . . . . . . . . . . . . . . . . . . . . . Heaviest Build 116 | 11 18 20 60 66 65 66 32 33 32 32 43 43 45 46 46 46 51 72 66 72 62 65 67 63 68 56 68 91 116 96 97 86 Greatest Support 206 | 40 40 40 60 63 63 60 42 42 42 42 53 53 53 52 52 52 52 68 68 206 203 68 73 67 67 67 72 107 104 112 112 94 Greatest Overweight (x) 4 | . . . . 1 1 1 . . . . . . . . . . . 1 1 1 . . 1 . 1 . . 1 1 . . 4 Average Overweight (x) . | . . . . . . . . . . . . . . . . . . . . . . . . . . . . . . . . . Largest Inventory Capacity 20 | 8 10 10 20 20 20 20 10 10 10 10 10 10 10 10 10 15 15 15 15 15 15 15 15 15 15 15 15 15 15 15 15 15 Average Capacity 14 | 7 8 10 18 20 20 14 10 10 10 10 10 10 10 10 10 13 15 15 15 15 15 15 14 15 15 15 15 15 15 15 15 11 Most Carried 20 | 5 10 10 20 20 20 19 10 10 9 10 10 10 10 10 10 15 15 15 15 15 15 15 15 15 15 15 15 15 15 15 15 14 Average Carried 14 | 3 6 9 17 18 19 13 9 9 8 8 9 10 9 9 9 12 14 14 12 14 12 14 14 14 14 14 14 14 14 14 14 10 Final Capacity 20 | 8 10 10 20 20 20 10 10 10 10 10 10 10 10 10 10 15 15 15 15 15 15 15 15 15 15 15 15 15 15 15 15 5 Final Carried 20 | 5 10 10 20 19 20 10 10 9 9 9 10 10 9 10 10 15 15 13 15 15 13 15 14 15 15 15 15 15 14 14 15 5 Class Distribution -------------------- 35% | Mutant 26% | Gladiator 24% | Scavenger-Mutant 6% | Scavenger-Gladiator Dominant Class ---------------- Mutant | -10/Materials Mutant | -10/Mines Scavenger-Mutant | -9/Materials Mutant | -9/Mines Mutant | -8/Materials Gladiator | -7/Factory Gladiator | -7/Lower Caves Gladiator | -7/Lower Caves Mutant | -7/Data Miner Gladiator | -6/Proximity Caves Gladiator | -6/Factory Mutant | -6/Waste Gladiator | -6/Factory Gladiator | -6/Lower Caves Gladiator | -6/Lower Caves Gladiator | -6/Zion Gladiator | -5/Proximity Caves Gladiator | -5/Factory Scavenger-Mutant | -5/Extension Scavenger-Mutant | -5/Cetus Scavenger-Mutant | -5/Archives Scavenger-Mutant | -5/Hub_04(d) Mutant | -4/Factory Mutant | -4/Upper Caves Commander-Mutant | -4/Upper Caves Scavenger-Mutant | -4/Zhirov Mutant | -3/Proximity Caves Scavenger-Gladiator | -3/Research Gladiator | -3/Testing Mutant | -2/Research Mutant | -2/Quarantine Mutant | -1/Access Resources | -11 -10 -10 -9 -9 -8 -7 -7 -7 -7 -6 -6 -6 -6 -6 -6 -6 -5 -5 -5 -5 -5 -5 -4 -4 -4 -4 -3 -3 -3 -2 -2 -1 ----------- Run | Yrd Mat Min Mat Min Mat Fac Low Low Dat Pro Fac Was Fac Low Low Zio Pro Fac Ext Cet Arc Hub Fac Upp Upp Zhi Pro Res Tes Res Qua Acc Matter Collected 11228 | 255 33 104 1090 407 1434 550 174 45 . 116 105 25 171 778 127 86 115 520 698 216 130 182 772 346 174 70 110 721 538 819 71 246 Remotely . | . . . . . . . . . . . . . . . . . . . . . . . . . . . . . . . . . Salvage Created 20174 | 14 548 77 1339 454 1933 1071 287 22 . 229 686 619 189 782 190 57 80 1227 941 81 192 139 1448 278 313 104 120 2822 1292 1371 112 1157 Parts 989 | 3 30 14 89 8 108 54 3 1 . 5 26 11 13 30 7 3 7 53 36 3 13 8 75 12 16 4 12 156 59 73 5 52 Haulers Intercepted 26 | . 2 . 6 . 6 3 . . . . 3 . . 1 . . . . . . . . 2 . . . . 2 . 1 . . Recyclers Shooed 15 | . 1 . 3 3 . . . . . . . . . . . . . 2 3 . . . 1 . . . . . . 1 . 1 Parts Field Recycled . | . . . . . . . . . . . . . . . . . . . . . . . . . . . . . . . . . Retrieved Matter . | . . . . . . . . . . . . . . . . . . . . . . . . . . . . . . . . . Parts Self-Destructed 101 | . . . . . . . 4 4 . 3 . . . 24 13 3 10 . . . . . . 11 10 4 15 . . . . . Prevented 16 | . . . . . . . . . . . . . . . . . 13 . . . . . . 2 1 . . . . . . . Kills | -11 -10 -10 -9 -9 -8 -7 -7 -7 -7 -6 -6 -6 -6 -6 -6 -6 -5 -5 -5 -5 -5 -5 -4 -4 -4 -4 -3 -3 -3 -2 -2 -1 ------- Run | Yrd Mat Min Mat Min Mat Fac Low Low Dat Pro Fac Was Fac Low Low Zio Pro Fac Ext Cet Arc Hub Fac Upp Upp Zhi Pro Res Tes Res Qua Acc Combat Hostiles Destroyed 306 | . 11 9 25 13 36 20 1 1 . 2 3 2 6 16 7 1 5 15 10 . . 4 17 8 12 . 2 38 14 16 1 11 Melee 123 | . . . . . . 8 1 1 . 2 2 . 3 3 4 1 2 13 4 . . . 6 . 1 . . 36 11 13 1 11 Guns 85 | . 11 . 21 8 26 4 . . . . . 2 . 6 . . . 2 3 . . 2 . . . . . . . . . . Cannons 5 | . . . . . . . . . . . . . . . . . . . . . . . 3 . . . 2 . . . . . AOE 87 | . . 9 4 5 10 7 . . . . 1 . 3 7 3 . 3 . 3 . . 2 7 8 9 . . . 3 3 . . Classes Destroyed 27 | 1 5 . 3 1 2 3 1 . . 1 1 1 1 . . . . . . . . 1 1 . . . . . 3 2 . . Worker 22 | . 1 1 1 . 3 . . . . . 3 . 1 . . . . 1 . . . 1 1 . . . . 6 1 1 . 1 Builder 12 | . 1 . . . 1 3 . . . . . . 1 . . . . . 1 . . . . . . . . 1 2 2 . . Tunneler 6 | 1 . . 1 . . . . . . . . . 1 . . . . 1 . . . . 1 . . . . 1 . . . . Hauler 26 | . 2 . 6 . 6 3 . . . . 3 . . 1 . . . . . . . . 2 . . . . 2 . 1 . . Recycler 27 | . . . 1 5 3 1 . . . . 1 . . . . . . 3 2 . . . 3 . . . . 2 2 1 . 3 Carrier 1 | . . . . . . . . . . . 1 . . . . . . . . . . . . . . . . . . . . . Minesweeper 3 | . . . . . . . 2 . . . . . . . . . . . . . . . . 1 . . . . . . . . Mechanic 3 | . . . . . . 1 . . . . . . . . . . . . . . . . . . . . . . 1 1 . . Operator 19 | . . . 1 . 2 . . . . . . . 1 . . . . 1 3 . 7 . 2 . . . . 1 1 . . . Drone 1 | . . . . . . . . . . 1 . . . . . . . . . . . . . . . . . . . . . . Watcher 7 | . . . . . . . . . . . . . 1 . . . . . 1 . . . . . . . . 3 . 2 . . Swarmer 103 | . 3 9 6 . 7 . 1 1 . . . . 2 7 6 . 4 5 3 . . 3 4 6 9 . . 18 . 7 1 1 Cutter 3 | . . . . . . . . . . . . . . . . . . . . . . . . . . . . . . 3 . . Grunt 88 | . 8 . 9 . 17 13 . . . . 1 . 3 8 . . 1 4 5 . . . 6 . 1 . . 4 8 . . . Brawler 3 | . . . . . 1 1 . . . . . . . 1 . . . . . . . . . . . . . . . . . . Duelist 1 | . . . . . . 1 . . . . . . . . . . . . . . . . . . . . . . . . . . Researcher 4 | . . . . . . . . . . . . . . . . . . . . . . . . . . . . . 3 . 1 . Sentry 29 | . . . 10 . 8 2 . . . . . . . . . . . 1 2 . . . . . 1 . . 3 . 2 . . Specialist 2 | . . . . . . . . . . . . . . . . . . . . . . . . . . . . . . 2 . . Hunter 11 | . . . . . 3 1 . . . . . . 1 . 1 1 . 1 . . . . . . . . . 1 . . . 2 Programmer 43 | . . . . . . 2 . . . 1 2 . . . . . . 4 . . . 1 6 2 . . 2 10 3 2 . 8 Behemoth 4 | . . . . . . . . . . . . . . . . . . . . . . . 1 . 1 . . 2 . . . . Compactor 2 | . . . . . . . . . . . . 2 . . . . . . . . . . . . . . . . . . . . Striker 2 | . . . . . . . . . . . . . . . . . . . . . . . . . . . . . 2 . . . Alpha 7 1 | . . . . . . . . . . . . . . . . . . . . . . . . . . . . . 1 . . . Z-Light 1 | . . . . . . . . . . . . . . . . . . . . . . 1 . . . . . . . . . . Packrat 4 | . . . . . . . 2 . . . . . . . . . . . . . . . . 2 . . . . . . . . Assembled 13 | . . . . 13 . . . . . . . . . . . . . . . . . . . . . . . . . . . . Best Kill Streak 8 | 1 5 4 5 8 4 8 1 1 . 1 7 1 5 4 3 1 4 5 5 . 2 3 4 5 5 . 2 8 4 6 1 7 Combat Bots Only 8 | . 3 3 5 7 4 8 1 1 . 1 1 1 3 4 3 1 4 5 4 . . 3 4 5 5 . 2 7 3 4 1 4 Max Kills in Single Turn 4 | 1 2 4 4 2 3 2 1 1 . 1 3 1 2 2 2 1 2 1 3 1 1 2 3 4 3 . 1 2 2 2 1 1 Gunslinging 1 | . 1 . . . 1 . . . . . . . . . . . . . . . . . . . . . . . . . . . Exploded 4 | . . 3 3 2 3 2 . . . . 1 . 1 2 2 . 2 . 3 . . 2 3 4 3 . . . 2 2 . . Melee 2 | . . . . . . 1 1 1 . 1 1 . 1 1 1 1 1 1 1 . . . 1 . 1 . . 2 1 1 1 1 Uniques/NPCs Destroyed 1 | . . . . . . . . . . . . . . . . . . . . 1 . . . . . . . . . . . . A7 (-5/Cetus) Combat | -11 -10 -10 -9 -9 -8 -7 -7 -7 -7 -6 -6 -6 -6 -6 -6 -6 -5 -5 -5 -5 -5 -5 -4 -4 -4 -4 -3 -3 -3 -2 -2 -1 -------- Run | Yrd Mat Min Mat Min Mat Fac Low Low Dat Pro Fac Was Fac Low Low Zio Pro Fac Ext Cet Arc Hub Fac Upp Upp Zhi Pro Res Tes Res Qua Acc Hostile Shots Fired 2483 | . 54 20 71 47 212 412 13 49 . 16 5 . 99 39 17 . 10 112 46 6 3 49 134 4 21 . 8 235 178 140 161 322 Missed 906 | . 13 3 21 11 64 138 7 18 . 7 1 . 58 13 7 . 2 34 13 3 . 21 58 2 7 . 3 102 43 60 68 129 Hits 1577 | . 41 17 50 36 148 274 6 31 . 9 4 . 41 26 10 . 8 78 33 3 3 28 76 2 14 . 5 133 135 80 93 193 Melee 36 | . . . . 1 . 15 . . . . . . . . . . . . . . . . . . . . . . 16 4 . . Projectile 1541 | . 41 17 50 35 148 259 6 31 . 9 4 . 41 26 10 . 8 78 33 3 3 28 76 2 14 . 5 133 119 76 93 193 AOE 17 | . . . . 11 . . . . . . . . . . . . . . . . . 2 . . . . . . . 3 . 1 Critical Strikes 62 | . 2 . 1 1 7 5 . 1 . . 1 . 3 3 . . . 3 3 1 . 2 4 1 1 . . 5 9 3 2 4 Actively Blocked 27 | . . . . . . . . 1 . . . . . . . . . . 3 . . . 3 . . . . 2 9 3 2 4 Part Disruptions 1 | . . . . . . . . . . . . . . . . . . . . . . . . . . . . . . . . 1 Damage Taken 28686 | . 459 169 651 883 1670 2531 72 477 . 151 59 . 566 517 172 65 176 1488 818 140 85 934 1543 39 314 . 117 3352 3370 1870 1703 4295 Core 4708 | . 109 89 80 65 183 446 34 26 . 48 . . 188 54 39 . 17 135 118 . . 148 247 12 . . . 348 400 140 168 1614 Absorbed by Shields 1548 | . . . . 20 565 452 . . . . . . . . . . . . 99 39 . . . . . . . . 110 100 163 . Redirected to Shielding 686 | . . . 30 4 . . 7 80 . . . . . . . . . . . . . . 148 . 41 . 15 254 107 . . . Ignored by Resistances 321 | . . . . . . . . . . . . . . . . . 4 . . . . . . . . . . . . 317 . . Regen/Repaired (Parts) 3679 | . . . . . 256 . . . . . . . . . . . . 115 . . . . 1191 . . . . 499 486 917 45 170 Core Remaining (%) 58 | 100 . 20 . 63 66 . . . . 20 . . . . . . 64 . . . . 59 . . . . 77 . 40 . 78 . Volleys Fired 724 | 1 45 6 78 40 161 26 . 1 . . . 40 5 54 2 . 3 16 40 7 30 17 32 22 7 . 22 15 37 17 . . Largest 2 | 2 2 1 2 2 2 2 . 1 . . . 1 1 1 1 . 1 1 1 2 1 2 2 1 1 . 1 1 1 1 . . Hottest 155 | 90 90 33 79 46 46 46 . 39 . . . 33 39 39 39 . 43 90 46 155 100 70 120 100 120 . 120 120 113 120 . . Shots Fired 1048 | 2 89 6 152 75 307 39 . 1 . . . 40 5 54 2 . 3 16 40 9 30 24 34 22 7 . 22 15 37 17 . . Gun 784 | 2 89 . 148 70 295 30 . . . . . 40 . 43 . . . 12 22 2 . 23 4 . . . . . . 4 . . Cannon 123 | . . . . . . . . . . . . . . . . . . 4 . 7 . . 26 4 3 . 22 15 34 8 . . Launcher 86 | . . 6 4 5 12 9 . 1 . . . . 5 11 2 . 3 . 2 . . 1 4 9 4 . . . 3 5 . . Special 55 | . . . . . . . . . . . . . . . . . . . 16 . 30 . . 9 . . . . . . . . Kinetic 713 | . 16 . 139 70 295 30 . . . . . 40 . 43 . . . 12 22 2 . 23 1 4 . . . 4 12 . . . Thermal 233 | 2 73 . 9 . . . . . . . . . . . . . . 4 . 7 30 . 29 9 3 . 22 11 22 12 . . Explosive 81 | . . 6 4 5 12 9 . 1 . . . . 5 11 2 . 3 . 2 . . 1 4 9 4 . . . 3 . . . Electromagnetic 5 | . . . . . . . . . . . . . . . . . . . . . . . . . . . . . . 5 . . Robot Hit Streak 22 | 1 9 . 22 5 16 10 . . . . . 6 2 7 5 . 1 4 16 4 16 5 7 15 16 . 19 . 2 5 . . Robot Miss Streak 4 | . 3 3 3 4 4 4 . . . . . 3 1 1 . . 2 1 3 2 2 2 1 . . . 1 . 2 3 . . Penetration Max 3 | . . . . . . . . . . . . 1 . 1 . . . 1 3 1 . . . . . . . . . . . . Secondary Targets 7 | . 2 . 2 . 3 . . . . . . . . . . . . . . . . . . . . . . . . . . . Max Gunslinging Chain 1 | . 1 . 1 . 1 . . . . . . . . . . . . . . . . . . . . . . . . . . . Shots Hit Robots 1122 | 1 60 . 106 38 212 53 14 6 1 7 15 26 17 32 6 4 7 55 52 14 35 10 42 41 6 4 4 104 56 45 6 43 Core Hits 647 | 1 27 9 56 30 96 41 5 1 . 4 14 6 15 33 7 1 5 29 27 5 15 10 31 21 10 . 2 49 37 41 2 17 Critical Kills 21 | . . . . . 2 1 . . . . . 2 . 5 . . . 3 4 . . 1 1 . 1 . . . 1 . . . Critical Parts Destroyed 25 | . . . . . 2 . . . . . . 1 . 2 . . . . 11 . . 1 . 4 1 . . 1 2 . . . Critical Strikes 118 | . 3 . 1 . 5 5 . 1 . . . 16 1 10 1 . . 9 18 . 4 2 8 4 3 . . 11 6 4 . 6 Burn 8 | . 3 . 1 . . . . . . . . . . . . . . . . . 4 . . . . . . . . . . . Destroy 58 | . . . . . 5 1 . . . . . 16 . 8 . . . 4 16 . . 2 1 2 . . . . 3 . . . Smash 6 | . . . . . . . . . . . . . . . . . . . . . . . . 2 3 . . 1 . . . . Sever 45 | . . . . . . 4 . 1 . . . . 1 2 1 . . 5 2 . . . 6 . . . . 10 3 4 . 6 Impale 1 | . . . . . . . . . . . . . . . . . . . . . . . 1 . . . . . . . . . Melee Attacks 887 | . . . 2 . 2 41 23 16 1 12 24 . 25 19 13 6 6 98 29 9 12 6 57 33 8 4 2 178 100 72 18 71 Impact 27 | . . . 2 . . . . . . . . . . . . . . . . . . . 5 9 6 . 2 3 . . . . Slashing 781 | . . . . . . 41 19 16 . 12 24 . 25 19 13 6 6 98 26 9 8 6 50 . . . . 173 80 72 18 60 Piercing 41 | . . . . . . . . . . . . . . . . . . . 3 . . . 2 . 2 1 . 2 20 . . 11 Sneak Attacks 132 | . . . . . 1 7 8 . 1 . 9 . 4 1 . . . 8 9 9 4 1 7 25 . 3 . 15 10 3 2 5 Combat Hostiles 23 | . . . . . . . 4 . . . . . . . . . . 1 2 . . . . 13 . . . 1 2 . . . Follow-up Attacks 75 | . . . . . . . . . . . 2 . 1 . 1 1 2 10 1 . . . . . . . . 16 19 9 3 10 Damage Inflicted 49770 | 11 796 482 2214 1138 4717 3449 794 342 . 501 1493 266 1316 1473 449 147 1155 2299 1644 719 742 767 2779 1164 1156 . 211 6702 4614 3098 483 2649 Guns 7764 | 11 793 . 1580 619 3218 401 . . . . . 266 . 171 . . . 84 252 78 . 233 29 . . . . . . 29 . . Cannons 934 | . . . . . . . . . . . . . . . . . . 33 . 121 . . 297 76 . . 211 . 196 . . . Explosions 12304 | . . 477 491 519 1471 1324 . . . . 586 . 633 787 246 . 905 . 297 . . 444 960 814 971 . . . 665 714 . . Melee 28206 | . . . . . . 1724 794 342 . 501 907 . 683 515 203 147 250 2182 1095 520 459 90 1493 174 185 . . 6702 3753 2355 483 2649 Ramming 179 | . 3 5 143 . 28 . . . . . . . . . . . . . . . . . . . . . . . . . . . Kinetic 7137 | . 164 . 1490 619 3218 401 . . . . . 266 . 171 . . . 84 252 78 . 233 22 76 . . . . 63 . . . Thermal 2688 | 11 629 . 90 . . 247 . . . . 441 . . . . . . 33 . 121 283 . 304 100 . . 211 . 133 85 . . Explosive 10459 | . . 477 491 519 1471 1077 . . . . . . 633 787 246 . 905 . 297 . . 191 915 814 971 . . . 665 . . . Electromagnetic 1101 | . . . . . . . . . . . 145 . . . . . . . . . . 253 45 . . . . . . 658 . . Impact 620 | . . . . . . . . . . . . . . . . . . . . . . . 92 174 185 . . 169 . . . . Slashing 26180 | . . . . . . 1724 794 342 . 501 907 . 683 515 203 147 250 2182 878 520 459 90 1303 . . . . 6533 2874 2355 483 2437 Piercing 1406 | . . . . . . . . . . . . . . . . . . . 217 . . . 98 . . . . . 879 . . 212 Highest Corruption 21 | . 2 2 . . . 1 1 2 2 3 . . . . . . . 10 10 1 1 4 3 . . . 1 12 21 10 10 17 Average Corruption 4 | . 2 2 . . . 1 1 1 2 2 . . . . . . . 5 6 1 1 1 2 . . . 1 6 11 8 10 9 Corruption Purged 19 | . . . . . . . . . . . . . . . . . . . 10 . 1 . 3 . . . . 5 . . . . Corruption Blocked . | . . . . . . . . . . . . . . . . . . . . . . . . . . . . . . . . . Effects 215 | . 9 15 . . . 6 3 5 . 4 . . . . . . . 26 39 3 1 2 13 . . . . 36 32 6 5 10 Message Errors 68 | . 2 4 . . . 1 1 3 . 2 . . . . . . . 10 10 2 1 1 4 . . . . 13 8 1 1 4 Matter Fused 46 | . 4 2 . . . 1 2 1 . . . . . . . . . 9 9 1 . . 3 . . . . 8 4 1 . 1 Heat Flow Errors 24 | . 2 1 . . . 1 . . . . . . . . . . . 3 7 . . . 4 . . . . 3 2 . . 1 Energy Discharges 26 | . 1 3 . . . 1 . 1 . . . . . . . . . 1 6 . . . 1 . . . . 1 5 3 1 2 Parts Rejected 4 | . . . . . . . . . . . . . . . . . . . 1 . . . 1 . . . . . 1 . 1 . Parts Fused 4 | . . . . . . . . . . 1 . . . . . . . . . . . . . . . . . 2 1 . . . Data Loss (minor) 22 | . . 4 . . . . . . . . . . . . . . . 2 6 . . 1 . . . . . 5 3 . . 1 Data Loss (major) 12 | . . 1 . . . 1 . . . 1 . . . . . . . 1 . . . . . . . . . 4 3 1 . . Misfires 2 | . . . . . . 1 . . . . . . . . . . . . . . . . . . . . . . 1 . . . Alerts 1 | . . . . . . . . . . . . . . . . . . . . . . . . . . . . . . . 1 . Misdirections 5 | . . . . . . . . . . . . . . . . . . . . . . . . . . . . . 3 . 1 1 Weapon Failures 1 | . . . . . . . . . . . . . . . . . . . . . . . . . . . . . 1 . . . Overload Shots . | . . . . . . . . . . . . . . . . . . . . . . . . . . . . . . . . . Overflow Damage 4623 | . . 28 . 35 52 296 253 71 . 87 232 . 149 82 . . 110 228 98 57 35 81 376 150 54 . 2 870 523 299 139 316 Projectiles 55 | . . . . . . . . . . . . . . . . . . . . . . . 5 15 . . 2 . 33 . . . Explosions 603 | . . 28 . 35 52 90 . . . . 44 . 12 66 . . 74 . 61 . . 81 . 59 . . . . . 1 . . Melee 3965 | . . . . . . 206 253 71 . 87 188 . 137 16 . . 36 228 37 57 35 . 371 76 54 . . 870 490 298 139 316 Knockbacks 4 | . . . 1 . . . . . . . . . . . . . . . . . . . . 2 . . . 1 . . . . Impact 3 | . . . 1 . . . . . . . . . . . . . . . . . . . . 1 . . . 1 . . . . Kinetic 1 | . . . . . . . . . . . . . . . . . . . . . . . . 1 . . . . . . . . Secondary . | . . . . . . . . . . . . . . . . . . . . . . . . . . . . . . . . . Self-Inflicted Damage 608 | . . 36 . 43 19 12 . . . . . . . 77 . . 47 . . . . 195 . . . . . . 67 62 50 . Shots 15 | . . 1 . 1 1 1 . . . . . . . 2 . . 1 . . . . 2 . . . . . . 1 4 1 . Rammed 33 | 1 1 3 20 . 8 . . . . . . . . . . . . . . . . . . . . . . . . . . . Targets Rammed 34 | 1 1 3 21 . 8 . . . . . . . . . . . . . . . . . . . . . . . . . . . Kicked . | . . . . . . . . . . . . . . . . . . . . . . . . . . . . . . . . . Crushed 1 | . . . 1 . . . . . . . . . . . . . . . . . . . . . . . . . . . . . Highest Temperature 363 | 30 311 72 72 24 12 271 . . . . . 4 70 25 24 114 88 285 279 30 . . 275 2 . . 80 356 363 238 . 333 Average Temperature 65 | 18 94 42 20 11 5 100 . . . . . 3 43 6 14 46 33 45 74 13 . . 75 2 . . 30 55 138 81 . 98 Received Heat Transfer 3650 | . 237 . 237 150 595 675 18 24 . 27 . . 141 189 . . 27 162 241 . 9 144 210 60 69 . . 174 213 36 . 12 Effects 4 | . . . . . . . . . . . . . . . . . . 1 . . . . . . . . . 1 1 1 . . Shutdowns 2 | . . . . . . . . . . . . . . . . . . . . . . . . . . . . 1 1 . . . Energy Bleed 1 | . . . . . . . . . . . . . . . . . . 1 . . . . . . . . . . . . . . Interference 1 | . . . . . . . . . . . . . . . . . . . . . . . . . . . . . . 1 . . Siege Activations . | . . . . . . . . . . . . . . . . . . . . . . . . . . . . . . . . . Martial Activations . | . . . . . . . . . . . . . . . . . . . . . . . . . . . . . . . . . Shielding Activations . | . . . . . . . . . . . . . . . . . . . . . . . . . . . . . . . . . Robots Disrupted 2 | . . . . . . . . . . . . . . . . . . . . . 1 . . 1 . . . . . . . . Combat Hostiles 1 | . . . . . . . . . . . . . . . . . . . . . . . . 1 . . . . . . . . Robots Corrupted 7 | . . . 1 . . . . . . . . . . . . . . . . . . 1 1 2 1 . . 1 . . . . Combat Hostiles 1 | . . . . . . . . . . . . . . . . . . . . . . . . . 1 . . . . . . . Parts Fried 12 | . . . 1 . . . . . . . . . 1 . . . . . 2 . . 2 1 1 1 . . 1 . 2 . . Impact Corruptions 14 | . . . 1 . . . . . . . . . . . . . . . . . . . 3 5 1 . . 4 . . . . Robots Melted 2 | . . . . . . . . . . . . . . . . . . . . . 2 . . . . . . . . . . . Combat Hostiles . | . . . . . . . . . . . . . . . . . . . . . . . . . . . . . . . . . Parts Melted 15 | . 4 . . . . . . . . . . . . . 1 . . 1 1 . 3 . . . . . . 5 . . . . Heat Transferred 6971 | 25 1883 . 296 . . 150 . . . . 300 . . . . . . 50 . 111 2720 . 333 720 . . 148 . 148 87 . . Parts Sabotaged . | . . . . . . . . . . . . . . . . . . . . . . . . . . . . . . . . . Parts Stolen . | . . . . . . . . . . . . . . . . . . . . . . . . . . . . . . . . . Parts Stripped . | . . . . . . . . . . . . . . . . . . . . . . . . . . . . . . . . . Power Chain Reactions 1 | . . . . . . . . . . . . . . . . . . . . . . . . . . . . . . 1 . . Alert | -11 -10 -10 -9 -9 -8 -7 -7 -7 -7 -6 -6 -6 -6 -6 -6 -6 -5 -5 -5 -5 -5 -5 -4 -4 -4 -4 -3 -3 -3 -2 -2 -1 ------- Run | Yrd Mat Min Mat Min Mat Fac Low Low Dat Pro Fac Was Fac Low Low Zio Pro Fac Ext Cet Arc Hub Fac Upp Upp Zhi Pro Res Tes Res Qua Acc Maximum Alert Level 4 | . . . 1 . 1 2 . . . . 2 . 1 . . . . 2 4 3 2 4 4 . . . . 3 4 3 2 1 Low Security (%) 37 | 100 100 100 31 100 63 38 . . . . 72 100 73 . . . . . 13 . . 35 . . . . . 28 . . . 38 Level 1 31 | . . . 68 . 36 24 . . . . 12 . 26 . . . . 71 35 . 86 2 . . . . . 35 . . . 61 Level 2 14 | . . . . . . 37 . . . . 15 . . . . . . 28 9 22 13 15 16 . . . . 9 44 69 100 . Level 3 16 | . . . . . . . . . . . . . . . . . . . 35 77 . 39 76 . . . . 26 47 30 . . Level 4 1 | . . . . . . . . . . . . . . . . . . . 5 . . 6 7 . . . . . 7 . . . Level 5 . | . . . . . . . . . . . . . . . . . . . . . . . . . . . . . . . . . High Security . | . . . . . . . . . . . . . . . . . . . . . . . . . . . . . . . . . Max Security . | . . . . . . . . . . . . . . . . . . . . . . . . . . . . . . . . . Peak Influence 1464 | . 145 188 291 105 342 596 . . . . 481 168 305 . . . . 438 1274 811 413 1464 1214 . . . . 987 1254 875 535 320 Initial 718 | . . 44 12 105 . 73 . . . . 178 168 34 . . . . 300 187 712 299 72 718 . . . . 15 555 697 490 320 Average 355 | . 55 82 206 10 185 282 . . . . 192 108 118 . . . . 357 608 732 318 564 837 . . . . 389 741 701 489 217 Influence Increases 17333 | 5 296 258 868 157 1206 973 35 80 . 112 684 1 457 390 170 20 276 1033 1831 379 264 1854 1093 213 350 5 110 1662 1159 621 175 596 Destroy 0b10 Robot/C 7720 | . 220 180 500 80 720 400 20 20 . 20 80 . 120 320 140 20 180 380 880 160 80 420 400 180 260 . 80 940 340 320 40 220 Destroy 0b10 Robot/NC 740 | 5 20 5 50 25 75 40 15 . . 15 35 . 25 10 . . 10 40 45 10 35 45 45 5 . 5 . 80 35 40 . 25 Destroy Leader 1470 | . 44 30 172 10 202 76 . . . 10 36 . 22 30 30 . 20 74 124 . . 92 84 20 30 . 20 188 20 66 . 70 Allied During Kill 1562 | . . . . 8 . . . . . 7 . . . . . . 51 27 531 170 115 357 37 8 60 . 10 181 . . . . Trap Triggered on 0b10 120 | . . . 40 . 10 40 . . . . . . 30 . . . . . . . . . . . . . . . . . . . Successful Hack 295 | . 11 . 13 . 42 91 . . . . 8 . 13 . . . . 6 12 . . . 42 . . . . 30 27 . . . Disable Machine 930 | . . . 30 . 75 60 . . . . 75 . . . . . . 75 45 15 30 195 105 . . . . 30 135 30 15 15 Anti-Garrison Action 600 | . . . . . . . . . . . 200 . . . . . . . . . . . . . . . . . 200 . . 200 Destroy Structure 1496 | . 1 43 33 34 67 56 . . . . 40 1 22 . . . . 56 104 24 4 520 140 . . . . 48 192 60 15 36 Advance Influence 450 | . . . . . . . . . . . 150 . . . . . . 300 . . . . . . . . . . . . . . Partial Spotted 240 | . . . . . . 30 . . . . . . 15 . . . . 15 15 . . 15 60 . . . . 45 30 15 . . Lose Combat Pursuer 1710 | . . . 30 . 15 180 . 60 . 60 60 . 210 30 . . 15 60 75 . . 210 180 . . . . 120 180 90 105 30 Influence Decreases 17103 | 5 182 340 628 429 1044 546 624 80 . 67 249 432 208 461 314 103 276 650 940 904 804 597 1354 895 458 420 87 698 906 989 512 901 Entered New Map 5782 | . . 70 20 167 . 89 219 . . . 17 312 15 111 44 83 . . 196 562 450 137 748 447 100 415 . 8 432 543 382 215 Time Decay 8945 | 5 172 270 598 156 714 347 385 80 . 47 222 120 183 350 270 20 216 550 534 222 294 230 546 428 318 5 87 430 404 386 70 286 Lost Part 1006 | . 10 . 10 46 30 110 . . . . . . 10 . . . . 60 90 . . . 40 . . . . 80 70 40 60 350 Lost Ally 1070 | . . . . 60 . . 20 . . 20 10 . . . . . 60 40 120 120 60 230 20 20 40 . . 180 . 20 . 50 Purge Threat 300 | . . . . . 300 . . . . . . . . . . . . . . . . . . . . . . . . . . . Squads Dispatched 91 | . 2 . 2 . 5 14 . . . . 2 . 3 . . . . 8 6 . . 7 6 . . . . 10 10 9 2 5 Investigation 27 | . 1 . 1 . 2 3 . . . . 1 . 2 . . . . 4 3 . . . 1 . . . . 1 4 . 1 3 Extermination 23 | . . . . . . 3 . . . . 1 . . . . . . 3 . . . 1 4 . . . . 5 2 2 . 2 Reinforcement 26 | . 1 . 1 . 3 4 . . . . . . 1 . . . . 1 1 . . 4 1 . . . . 2 2 4 1 . Assault 12 | . . . . . . 1 . . . . . . . . . . . . 2 . . 2 . . . . . 2 2 3 . . Garrison 3 | . . . . . . 3 . . . . . . . . . . . . . . . . . . . . . . . . . . Intercept . | . . . . . . . . . . . . . . . . . . . . . . . . . . . . . . . . . Searches Triggered . | . . . . . . . . . . . . . . . . . . . . . . . . . . . . . . . . . Data Miner Redirects 12 | . . . . . . . . . . . . . . . . . . . 3 . . 2 1 . . . . . 2 2 1 1 Construction Impeded 5 | . . . . . 1 1 . . . . . . . . . . . . 1 . . . 1 . . . . . . 1 . . Haulers Reinforced 2 | . . . . . . 1 . . . . . . . . . . . . . . . . . . . . . 1 . . . . Active Scanning Responses . | . . . . . . . . . . . . . . . . . . . . . . . . . . . . . . . . . Cargo Convoy Interrupts . | . . . . . . . . . . . . . . . . . . . . . . . . . . . . . . . . . Stealth | -11 -10 -10 -9 -9 -8 -7 -7 -7 -7 -6 -6 -6 -6 -6 -6 -6 -5 -5 -5 -5 -5 -5 -4 -4 -4 -4 -3 -3 -3 -2 -2 -1 --------- Run | Yrd Mat Min Mat Min Mat Fac Low Low Dat Pro Fac Was Fac Low Low Zio Pro Fac Ext Cet Arc Hub Fac Upp Upp Zhi Pro Res Tes Res Qua Acc Distress Signals 39 | . . . 6 . 6 2 . . . 1 2 . . . . . . 2 1 2 . 2 7 . . . . 2 1 2 . 3 Communications Jammed 45 | . . . . . . . . . . 1 . . . . . . . . 1 . . . 22 . . . . . 3 1 . 17 Distress Signals 22 | . . . . . . . . . . . . . . . . . . . 1 . . . . . . . . . 3 1 . 17 Times Spotted 676 | . 13 9 50 23 71 38 5 4 . 9 8 7 25 11 7 1 9 37 35 11 23 23 49 4 6 . 3 64 52 27 16 36 Peak Tracking Total 18 | . 3 3 6 9 5 7 2 4 . 7 5 5 7 4 3 1 5 6 6 5 1 8 9 4 3 . 2 8 11 10 9 18 Tactical Retreats 70 | . . . 2 2 1 6 . 4 . 1 1 1 8 2 . . 1 3 4 . . 5 9 . . . . 4 6 5 3 2 Traps | -11 -10 -10 -9 -9 -8 -7 -7 -7 -7 -6 -6 -6 -6 -6 -6 -6 -5 -5 -5 -5 -5 -5 -4 -4 -4 -4 -3 -3 -3 -2 -2 -1 ------- Run | Yrd Mat Min Mat Min Mat Fac Low Low Dat Pro Fac Was Fac Low Low Zio Pro Fac Ext Cet Arc Hub Fac Upp Upp Zhi Pro Res Tes Res Qua Acc Traps Triggered 27 | . 4 . . . 1 2 . . . . 1 . 1 . . . . 4 5 . . 2 1 . . . . 3 1 . 1 1 Indirectly . | . . . . . . . . . . . . . . . . . . . . . . . . . . . . . . . . . Trap Hack Attempts 74 | . . . . . 74 . . . . . . . . . . . . . . . . . . . . . . . . . . . Triggered . | . . . . . . . . . . . . . . . . . . . . . . . . . . . . . . . . . Disarmed 2 | . . . . . 2 . . . . . . . . . . . . . . . . . . . . . . . . . . . Reprogrammed 18 | . . . 12 . 6 . . . . . . . . . . . . . . . . . . . . . . . . . . . Reused 21 | . . . 4 . 1 4 6 . . . . . 3 . 1 . . . . . . . . 2 . . . . . . . . Traps Extracted 9 | . . . 4 . . . 4 . . . . . . . 1 . . . . . . . . . . . . . . . . . Installed 23 | . . . . . . 4 10 . . . . . 4 . 1 . . . . . . . . 4 . . . . . . . . Triggered 18 | . . . 4 . 1 4 4 . . . . . 3 . 1 . . . . . . . . 1 . . . . . . . . Most Traps Carried 4 | . . . 4 4 4 4 4 4 4 4 4 4 4 . . . . . . . . . . 4 . . . . . . . . Objects Rigged 12 | . . . . . . . . . . . 12 . . . . . . . . . . . . . . . . . . . . . Exploded 1 | . . . . . . . . . . . 1 . . . . . . . . . . . . . . . . . . . . . Machines | -11 -10 -10 -9 -9 -8 -7 -7 -7 -7 -6 -6 -6 -6 -6 -6 -6 -5 -5 -5 -5 -5 -5 -4 -4 -4 -4 -3 -3 -3 -2 -2 -1 ---------- Run | Yrd Mat Min Mat Min Mat Fac Low Low Dat Pro Fac Was Fac Low Low Zio Pro Fac Ext Cet Arc Hub Fac Upp Upp Zhi Pro Res Tes Res Qua Acc Machines Disabled 69 | . . . 2 . 5 4 . . . . 5 . . . 1 . . 5 4 1 2 13 7 2 . . . 2 12 2 1 1 Max in Single Turn 7 | . . . 1 . 1 2 . . . . 5 . . . 1 . . 1 . 1 . 7 2 1 . . . 1 4 1 1 1 Garrison Access 8 | . . . . . . . . . . . 1 . . . . . . 2 . . . 1 1 . . . . . 1 1 . 1 Network Hub 3 | . . . . . . . . . . . . . . . . . . . . . . 3 . . . . . . . . . . Machines Repaired . | . . . . . . . . . . . . . . . . . . . . . . . . . . . . . . . . . Machines Dismantled . | . . . . . . . . . . . . . . . . . . . . . . . . . . . . . . . . . Machines Sabotaged . | . . . . . . . . . . . . . . . . . . . . . . . . . . . . . . . . . Overloaded Fab Kills . | . . . . . . . . . . . . . . . . . . . . . . . . . . . . . . . . . Hacking | -11 -10 -10 -9 -9 -8 -7 -7 -7 -7 -6 -6 -6 -6 -6 -6 -6 -5 -5 -5 -5 -5 -5 -4 -4 -4 -4 -3 -3 -3 -2 -2 -1 --------- Run | Yrd Mat Min Mat Min Mat Fac Low Low Dat Pro Fac Was Fac Low Low Zio Pro Fac Ext Cet Arc Hub Fac Upp Upp Zhi Pro Res Tes Res Qua Acc Machines Accessed 98 | . 2 . 10 . 11 13 . 1 3 . 7 . 6 1 . . . 9 1 1 . 1 7 1 . 4 . 10 4 3 . 3 Terminals 37 | . 2 . 9 . 8 6 . 1 . . 4 . 4 1 . . . . . 1 . . . 1 . . . . . . . . Fabricators 12 | . . . . . . . . . . . . . 1 . . . . 3 . . . . 3 . . . . 2 2 . . 1 Repair Stations 16 | . . . 1 . 1 3 . . . . . . 1 . . . . 1 . . . . 2 . . . . 3 1 2 . 1 Recycling Units 10 | . . . . . . 2 . . . . 2 . . . . . . 3 1 . . . . . . . . 2 . . . . Scanalyzers 3 | . . . . . 2 . . . . . . . . . . . . . . . . . . . . . . 1 . . . . Garrison Access 13 | . . . . . . 2 . . . . 1 . . . . . . 2 . . . 1 2 . . . . 2 1 1 . 1 Total Hacks 332 | . 8 . 27 . 51 25 . 1 26 . 16 . 12 1 . . . 21 3 1 . 6 47 1 . 17 . 38 12 6 . 13 Successful 167 | . 6 . 11 . 32 11 . 1 26 . 4 . 4 1 . . . 9 2 . . 1 20 1 . 17 . 14 4 1 . 2 Failed 164 | . 2 . 16 . 18 14 . . . . 12 . 8 . . . . 12 1 1 . 5 27 . . . . 24 8 5 . 11 Catastrophic 46 | . 1 . 7 . 3 5 . . . . 4 . 2 . . . . 1 . 1 . 2 3 . . . . 8 3 1 . 5 Database Lockouts 1 | . . . . . 1 . . . . . . . . . . . . . . . . . . . . . . . . . . . Manual 236 | . 6 . 18 . 19 9 . . . . 11 . 7 . . . . 12 19 1 . 8 33 . . . . 49 23 7 . 14 Terminals 100 | . 8 . 25 . 31 14 . 1 . . 11 . 7 1 . . . . . 1 . . . 1 . . . . . . . . Fabricators 38 | . . . . . . . . . . . . . 3 . . . . 7 . . . . 13 . . . . 6 6 . . 3 Repair Stations 76 | . . . 2 . 12 4 . . . . . . 2 . . . . 3 . . . . 31 . . . . 7 4 4 . 7 Recycling Units 27 | . . . . . . 3 . . . . 3 . . . . . . 8 3 . . . . . . . . 10 . . . . Scanalyzers 16 | . . . . . 8 . . . . . . . . . . . . . . . . . . . . . . 8 . . . . Garrison Access 32 | . . . . . . 4 . . . . 2 . . . . . . 3 . . . 6 3 . . . . 7 2 2 . 3 Terminal Hacks 80 | . 6 . 8 . 14 4 . 1 26 . 1 . 1 1 . . . . . . . . . 1 . 17 . . . . . . Record 14 | . . . . . . . . 1 6 . . . . 1 . . . . . . . . . 1 . 5 . . . . . . Part Schematic 17 | . 1 . . . . . . . 12 . . . . . . . . . . . . . . . . 4 . . . . . . Robot Schematic 5 | . . . . . . . . . 5 . . . . . . . . . . . . . . . . . . . . . . . Robot Analysis 9 | . 3 . 1 . 1 . . . . . . . . . . . . . . . . . . . . 4 . . . . . . Prototype ID Bank 13 | . 1 . 2 . 3 . . . 3 . . . . . . . . . . . . . . . . 4 . . . . . . Branch Access Points 5 | . . . 1 . 1 1 . . . . 1 . 1 . . . . . . . . . . . . . . . . . . . Scanalyzer Index 1 | . . . . . 1 . . . . . . . . . . . . . . . . . . . . . . . . . . . Unreport Threat 2 | . . . . . 2 . . . . . . . . . . . . . . . . . . . . . . . . . . . Locate Traps 7 | . . . 2 . 3 2 . . . . . . . . . . . . . . . . . . . . . . . . . . Reprogram Traps 2 | . . . 2 . . . . . . . . . . . . . . . . . . . . . . . . . . . . . Hauler Manifests 1 | . 1 . . . . . . . . . . . . . . . . . . . . . . . . . . . . . . . Registered Components 1 | . . . . . 1 . . . . . . . . . . . . . . . . . . . . . . . . . . . Zone Layout 3 | . . . . . 2 1 . . . . . . . . . . . . . . . . . . . . . . . . . . Fabricator Hacks 11 | . . . . . . . . . . . . . 1 . . . . 4 . . . . 2 . . . . 1 2 . . 1 Network Status 3 | . . . . . . . . . . . . . . . . . . 1 . . . . . . . . . 1 . . . 1 Load Schematic 4 | . . . . . . . . . . . . . 1 . . . . 1 . . . . 1 . . . . . 1 . . . Build 4 | . . . . . . . . . . . . . . . . . . 2 . . . . 1 . . . . . 1 . . . Repair Station Hacks 32 | . . . 1 . 8 1 . . . . . . 1 . . . . 2 . . . . 15 . . . . 4 . . . . Scan Component 18 | . . . 1 . 4 1 . . . . . . 1 . . . . 1 . . . . 8 . . . . 2 . . . . Repair 13 | . . . . . 4 . . . . . . . . . . . . 1 . . . . 6 . . . . 2 . . . . Refit 1 | . . . . . . . . . . . . . . . . . . . . . . . 1 . . . . . . . . . Recycling Unit Hacks 5 | . . . . . . 2 . . . . . . . . . . . 1 1 . . . . . . . . 1 . . . . Retrieve Components 5 | . . . . . . 2 . . . . . . . . . . . 1 1 . . . . . . . . 1 . . . . Scanalyzer 11 | . . . . . 7 . . . . . . . . . . . . . . . . . . . . . . 4 . . . . Insert Component 6 | . . . . . 3 . . . . . . . . . . . . . . . . . . . . . . 3 . . . . Analyze 5 | . . . . . 4 . . . . . . . . . . . . . . . . . . . . . . 1 . . . . Garrison Access Hacks 5 | . . . . . . . . . . . . . . . . . . 2 . . . 1 1 . . . . . . 1 . . Seal Access 5 | . . . . . . . . . . . . . . . . . . 2 . . . 1 1 . . . . . . 1 . . Unauthorized Hacks 23 | . . . 2 . 3 4 . . . . 3 . 1 . . . . . 1 . . . 2 . . . . 4 2 . . 1 Terminals 10 | . . . 2 . 3 2 . . . . 2 . 1 . . . . . . . . . . . . . . . . . . . Assimilate 4 | . . . 1 . 1 1 . . . . 1 . . . . . . . . . . . . . . . . . . . . . Botnet 5 | . . . 1 . 2 1 . . . . . . 1 . . . . . . . . . . . . . . . . . . . Detonate 1 | . . . . . . . . . . . 1 . . . . . . . . . . . . . . . . . . . . . Fabricators 4 | . . . . . . . . . . . . . . . . . . . . . . . 2 . . . . 2 . . . . Prioritize 2 | . . . . . . . . . . . . . . . . . . . . . . . 1 . . . . 1 . . . . Liberate 1 | . . . . . . . . . . . . . . . . . . . . . . . . . . . . 1 . . . . Recompile 1 | . . . . . . . . . . . . . . . . . . . . . . . 1 . . . . . . . . . Repair Stations 2 | . . . . . . 1 . . . . . . . . . . . . . . . . . . . . . . 1 . . . Patch 2 | . . . . . . 1 . . . . . . . . . . . . . . . . . . . . . . 1 . . . Recycling Units 3 | . . . . . . . . . . . . . . . . . . . 1 . . . . . . . . 2 . . . . Reject 3 | . . . . . . . . . . . . . . . . . . . 1 . . . . . . . . 2 . . . . Scanalyzers . | . . . . . . . . . . . . . . . . . . . . . . . . . . . . . . . . . Garrison Access 4 | . . . . . . 1 . . . . 1 . . . . . . . . . . . . . . . . . 1 . . 1 Reprogram 1 | . . . . . . 1 . . . . . . . . . . . . . . . . . . . . . . . . . . Jam 3 | . . . . . . . . . . . 1 . . . . . . . . . . . . . . . . . 1 . . 1 Data Cores Recovered 2 | . . . . . 2 . . . . . . . . . . . . . . . . . . . . . . . . . . . Used . | . . . . . . . . . . . . . . . . . . . . . . . . . . . . . . . . . Hacking Detections 73 | . 2 . 10 . 11 9 . . . . 6 . 6 . . . . 8 . 2 . 1 5 . . . . 6 3 2 . 2 Full Trace Events 11 | . . . 2 . 2 1 . . . . . . 1 . . . . 3 . . . . . . . . . . 1 . . 1 Feedback Events 1 | . . . . . . . . . . . . . . . . . . . . . . . . . . . . . . . . 1 Hackware Fried 1 | . . . . . . . . . . . . . . . . . . . . . . . . . . . . . . . . 1 Feedback Blocked . | . . . . . . . . . . . . . . . . . . . . . . . . . . . . . . . . . Robot Schematics Acquired 15 | . . . . . . . . . 5 . . . . . . 4 . . . . . . . . . . . . 6 . . . Robots Built . | . . . . . . . . . . . . . . . . . . . . . . . . . . . . . . . . . Authchips . | . . . . . . . . . . . . . . . . . . . . . . . . . . . . . . . . . Time . | . . . . . . . . . . . . . . . . . . . . . . . . . . . . . . . . . Total Robot Build Rating . | . . . . . . . . . . . . . . . . . . . . . . . . . . . . . . . . . Part Schematics Acquired 90 | . 1 . . . 1 . . . 12 . . . . . . 14 . 12 . . . . . . . 4 . 30 15 . 1 . Parts Built 7 | . . . . . . . . . . . . . . . . . . 4 . . . . 2 . . . . . 1 . . . Authchips 1 | . . . . . . . . . . . . . . . . . . . . . . . 1 . . . . . . . . . Time 349 | . . . . . . . . . . . . . . . . . . 234 . . . . 47 . . . . . 68 . . . Total Part Build Rating 46 | . . . . . . . . . . . . . . . . . . 28 . . . . 10 . . . . . 8 . . . Parts Repaired 13 | . . . . . 4 . . . . . . . . . . . . 1 . . . . 6 . . . . 2 . . . . Time 931 | . . . . . 246 . . . . . . . . . . . . 50 . . . . 419 . . . . 216 . . . . Parts Recycled . | . . . . . . . . . . . . . . . . . . . . . . . . . . . . . . . . . Recycled Matter . | . . . . . . . . . . . . . . . . . . . . . . . . . . . . . . . . . Retrieved Matter . | . . . . . . . . . . . . . . . . . . . . . . . . . . . . . . . . . Retrieved Components 6 | . . . . . . 2 . . . . . . . . . . . . 2 . . . . . . . . 2 . . . . Parts Scanalyzed 3 | . . . . . 2 . . . . . . . . . . . . . . . . . . . . . . 1 . . . . Part Schematics Acquired 2 | . . . . . 1 . . . . . . . . . . . . . . . . . . . . . . 1 . . . . Parts Damaged . | . . . . . . . . . . . . . . . . . . . . . . . . . . . . . . . . . Bothacking | -11 -10 -10 -9 -9 -8 -7 -7 -7 -7 -6 -6 -6 -6 -6 -6 -6 -5 -5 -5 -5 -5 -5 -4 -4 -4 -4 -3 -3 -3 -2 -2 -1 ------------ Run | Yrd Mat Min Mat Min Mat Fac Low Low Dat Pro Fac Was Fac Low Low Zio Pro Fac Ext Cet Arc Hub Fac Upp Upp Zhi Pro Res Tes Res Qua Acc Used RIF Installer . | . . . . . . . . . . . . . . . . . . . . . . . . . . . . . . . . . Robots Hacked 10 | . . . . . 1 . . . 1 . . . . . . . . . 4 . . . . 1 . 3 . . . . . . Non-combat 1 | . . . . . 1 . . . . . . . . . . . . . . . . . . . . . . . . . . . Combat 7 | . . . . . . . . . 1 . . . . . . . . . 2 . . . . 1 . 3 . . . . . . Robot Hacks Applied 8 | . . . . . 1 . . . 1 . . . . . . . . . 2 . . . . 1 . 3 . . . . . . parse_system 7 | . . . . . . . . . 1 . . . . . . . . . 2 . . . . 1 . 3 . . . . . . check_alert 1 | . . . . . 1 . . . . . . . . . . . . . . . . . . . . . . . . . . . Manual 2 | . . . . . . . . . . . . . . . . . . . 2 . . . . . . . . . . . . . Relay Couplers Released 7 | . . . . . . . . . . . . . . . . . . . . . . . . . . . . 3 . . . 4 Programmers 7 | . . . . . . . . . . . . . . . . . . . . . . . . . . . . 3 . . . 4 Fabnet Peak Effective % . | . . . . . . . . . . . . . . . . . . . . . . . . . . . . . . . . . Robots Rewired 17 | . . . . . . . 2 . . . . . . . . . . . 6 . 1 . . 7 . . . 1 . . . . Allies Hacked 4 | . . . . . . . . . . . 1 . . . . . . . . . . 1 . . . . 1 1 . . . . Hacks Repelled . | . . . . . . . . . . . . . . . . . . . . . . . . . . . . . . . . . Allies | -11 -10 -10 -9 -9 -8 -7 -7 -7 -7 -6 -6 -6 -6 -6 -6 -6 -5 -5 -5 -5 -5 -5 -4 -4 -4 -4 -3 -3 -3 -2 -2 -1 -------- Run | Yrd Mat Min Mat Min Mat Fac Low Low Dat Pro Fac Was Fac Low Low Zio Pro Fac Ext Cet Arc Hub Fac Upp Upp Zhi Pro Res Tes Res Qua Acc Total Allies 80 | . . . . 5 . . 2 . . 1 1 . . . . 4 . 3 26 5 1 7 3 7 . . . 10 . 2 . 3 Largest Group 19 | . . . . 3 . . 2 . . 1 1 . . . . 4 4 3 19 16 13 13 3 6 6 4 4 6 . 1 . 2 Highest-Rated Group 850 | . . . . 49 . . 58 . . 96 10 . . . . 151 151 210 819 850 729 774 288 293 293 214 214 243 . 31 . 162 Highest-Rated Ally 159 | . . . . 31 . . 29 . . 96 10 . . . . 40 40 70 159 121 96 96 96 70 70 70 70 47 . 31 . 81 Zionite Dispatches 14 | . . . . . . . . . . . . . . . . . . 1 2 . . 4 1 . . . . 2 . 2 . 2 Light 4 | . . . . . . . . . . . . . . . . . . 1 1 . . 1 1 . . . . . . . . . Fire 3 | . . . . . . . . . . . . . . . . . . . 1 . . . . . . . . 2 . . . . Hacker 2 | . . . . . . . . . . . . . . . . . . . . . . 1 . . . . . . . . . 1 Demo 1 | . . . . . . . . . . . . . . . . . . . . . . 1 . . . . . . . . . . Melee Resupply 1 | . . . . . . . . . . . . . . . . . . . . . . . . . . . . . . . . 1 Infowar Resupply 1 | . . . . . . . . . . . . . . . . . . . . . . . . . . . . . . 1 . . Hover Resupply 1 | . . . . . . . . . . . . . . . . . . . . . . 1 . . . . . . . . . . Zionite Resupply 1 | . . . . . . . . . . . . . . . . . . . . . . . . . . . . . . 1 . . Total Orders 22 | . . . . . . . . . . . . . . . . . . 1 . . . 1 . 4 4 2 . 1 2 4 . 3 STAY 5 | . . . . . . . . . . . . . . . . . . . . . . . . 2 2 1 . . . . . . ROAM 1 | . . . . . . . . . . . . . . . . . . . . . . . . . . . . . . 1 . . FOLLOW 5 | . . . . . . . . . . . . . . . . . . . . . . . . 2 2 1 . . . . . . DROP 4 | . . . . . . . . . . . . . . . . . . . . . . 1 . . . . . . . 2 . 1 RETURN 7 | . . . . . . . . . . . . . . . . . . 1 . . . . . . . . . 1 2 1 . 2 Ally Attacks 561 | . . . . 17 . . 1 . . 3 . . . . . . 24 44 214 61 30 63 29 5 5 . 14 48 . . . 3 Total Damage 15481 | . . . . 186 . . 26 . . 94 . . . . . . 604 759 5529 1354 758 3057 1253 93 132 . 499 967 . . . 170 Kills 118 | . . . . 6 . . . . . . . . . . . . 6 7 39 11 4 27 4 1 1 . 2 9 . . . 1 Allies Corrupted 7 | . . . . . . . . . . . . . . . . . 1 . 1 . . 3 . 1 . . . 1 . . . . Allies Melted 2 | . . . . 1 . . . . . 1 . . . . . . . . . . . . . . . . . . . . . . Intel | -11 -10 -10 -9 -9 -8 -7 -7 -7 -7 -6 -6 -6 -6 -6 -6 -6 -5 -5 -5 -5 -5 -5 -4 -4 -4 -4 -3 -3 -3 -2 -2 -1 ------- Run | Yrd Mat Min Mat Min Mat Fac Low Low Dat Pro Fac Was Fac Low Low Zio Pro Fac Ext Cet Arc Hub Fac Upp Upp Zhi Pro Res Tes Res Qua Acc Active Infowar (turns) 13629 | . . . 1 . . 434 636 463 57 312 469 257 206 440 517 59 624 1049 924 17 474 268 884 953 664 34 409 1166 812 844 52 604 Sensors 12569 | . . . . . . 434 636 463 57 289 469 257 206 440 517 59 624 1047 830 17 474 268 703 811 600 34 409 1052 545 757 52 519 Terrain 1 | . . . 1 . . . . . . . . . . . . . . . . . . . . . . . . . . . . . Machine Analysis 1 | . . . . . . . . . . . . . . . . . . . . . . . . . . . . 1 . . . . Jamming 1898 | . . . . . . . . . . 23 . . . . . . . . 94 . . . 114 142 64 . . 448 295 299 . 419 ECM 346 | . . . . . . . . . . . . . . . . . . 98 . . . . 82 . . . . 5 161 . . . Robot Analysis Total 9 | . 3 . 1 . 1 . . . . . . . . . . . . . . . . . . . . 4 . . . . . . Derelict Logs Recovered 16 | . . 2 . 1 . . 1 3 . 1 . . . . 2 2 1 . . . . . . 2 1 . . . . . . . Drone Launches 8 | . . . . . . . . . . . . . . . . . . 1 . . . . 1 . . . . 1 2 1 . 2 Drone Recoveries 8 | . . . . . . . . . . . . . . . . . . 1 . . . . 1 . . . . 1 2 1 . 2 Zionite Intel Received 26 | . . . . . . . . . . . . . . . . . . 1 3 . . . 6 . . . . 10 5 . . 1 Main Access 1 | . . . . . . . . . . . . . . . . . . . . . . . . . . . . 1 . . . . Emergency Access 4 | . . . . . . . . . . . . . . . . . . . 1 . . . 1 . . . . 1 1 . . . Guard Positions 4 | . . . . . . . . . . . . . . . . . . . 1 . . . 1 . . . . 1 1 . . . Component Stockpiles 1 | . . . . . . . . . . . . . . . . . . . . . . . 1 . . . . . . . . . Prototype Stockpiles 2 | . . . . . . . . . . . . . . . . . . . . . . . 1 . . . . 1 . . . . Component Schematics 1 | . . . . . . . . . . . . . . . . . . . . . . . . . . . . . 1 . . . Prototype Schematics 4 | . . . . . . . . . . . . . . . . . . 1 . . . . . . . . . 3 . . . . Unaware Schematics 1 | . . . . . . . . . . . . . . . . . . . . . . . . . . . . . 1 . . . Unaware Analyses 1 | . . . . . . . . . . . . . . . . . . . . . . . 1 . . . . . . . . . Trap Installations 2 | . . . . . . . . . . . . . . . . . . . . . . . 1 . . . . 1 . . . . Active Terminals 1 | . . . . . . . . . . . . . . . . . . . . . . . . . . . . 1 . . . . Active Garrisons 3 | . . . . . . . . . . . . . . . . . . . 1 . . . . . . . . . 1 . . 1 Depthwide Sectors/-1 1 | . . . . . . . . . . . . . . . . . . . . . . . . . . . . 1 . . . . Exploration | -11 -10 -10 -9 -9 -8 -7 -7 -7 -7 -6 -6 -6 -6 -6 -6 -6 -5 -5 -5 -5 -5 -5 -4 -4 -4 -4 -3 -3 -3 -2 -2 -1 ------------- Run | Yrd Mat Min Mat Min Mat Fac Low Low Dat Pro Fac Was Fac Low Low Zio Pro Fac Ext Cet Arc Hub Fac Upp Upp Zhi Pro Res Tes Res Qua Acc Turns Passed 28621 | 94 479 733 2445 1132 3678 1169 901 602 58 326 469 257 435 782 595 709 706 1580 1507 469 657 492 1567 1049 706 100 472 1786 971 919 143 633 Spaces Moved 26814 | 50 191 437 1231 602 1279 910 1234 819 89 416 609 252 575 978 840 955 823 1804 1008 178 471 672 2199 1430 846 164 691 2426 1013 884 161 577 Core 14 | 6 . . . . . . . . . . . . . . . . . . . . . . . . . . . . . . . 8 Treads 4170 | 44 191 437 1231 602 1279 168 . . . . . . . . . . . . 7 178 33 . . . . . . . . . . . Legs . | . . . . . . . . . . . . . . . . . . . . . . . . . . . . . . . . . Wheels . | . . . . . . . . . . . . . . . . . . . . . . . . . . . . . . . . . Hover 22605 | . . . . . . 742 1234 819 89 416 609 252 575 978 840 955 823 1804 1001 . 438 672 2199 1430 846 164 691 2426 1013 884 161 544 Flight 25 | . . . . . . . . . . . . . . . . . . . . . . . . . . . . . . . . 25 Fastest Speed 34 | 50 160 160 160 160 160 45 59 59 59 59 53 59 58 58 58 58 58 48 56 160 53 44 35 47 47 47 47 34 47 47 47 34 Average Speed 74 | 146 160 160 160 160 205 92 59 59 59 59 58 59 59 58 58 58 58 60 96 213 60 45 45 47 48 47 52 50 53 50 55 54 Slowest Speed 250 | 160 160 160 160 240 250 250 59 59 59 59 59 59 66 58 58 58 58 129 240 240 160 53 103 47 107 47 53 116 117 53 59 250 Overloaded Moves 39 | . . . . . . . . . . . . . . . . . . . . . . . 22 . . . . 11 6 . . . Propulsion Burnouts . | . . . . . . . . . . . . . . . . . . . . . . . . . . . . . . . . . Robots Hopped 5 | . . . . . . . . . . . . . . . . . . . . . 3 . . . . . . . . . . 2 Potential Cave-ins 10 | . . . . . . . . . . . . . . . . . . . . . . . . . . . 2 . 8 . . . Cave-ins Triggered 1 | . . . . . . . . . . . . . . . . . . . . . . . . . . . . . 1 . . . Teleports 1 | . . . . . . . . . . . . . . . . . . . . . . . . . . . . . 1 . . . Exploration Rate (%) 64 | 4 49 88 79 98 87 32 92 89 75 49 20 99 11 68 83 88 88 30 86 66 90 66 43 97 85 60 76 57 86 29 31 21 Regions Visited 32 Branch Regions 20 Pre-discovered Areas 8 | . . . . . . . . . 1 . . . . . . . . . . . . . . 2 . 3 . 2 . . . . Known Exits Taken 26 | . . . 1 . 1 1 1 1 1 1 . . 1 1 1 1 1 1 1 1 1 1 1 1 1 1 1 1 1 1 1 . Unknown Exits Taken 4 | 1 1 1 . 1 . . . . . . . . . . . . . . . . . . . . . . . . . . . . Scrap Searched 38 | . . 1 . 3 . . 2 2 . 2 . . . 2 10 2 1 . . . . . . 4 4 . 5 . . . . . Spaces Dug 431 | . . 24 9 33 . 35 9 29 . 3 9 . 6 5 12 . . 17 5 . . 4 28 22 3 . 14 26 107 17 5 9 Terrain Destroyed 1559 | . . 61 28 51 74 61 9 29 . 3 49 1 34 159 22 . 33 18 55 2 . 351 62 148 85 . 20 29 140 21 5 9 Melee 138 | . . . 1 . . 8 9 7 . 3 9 . 6 . 4 . . 15 5 . . 4 12 2 . . 2 18 9 10 5 9 Projectile 84 | . . . . . . . . . . . . . . . . . . 3 . 2 . 6 18 . 3 . 18 11 16 7 . . AOE 1330 | . . 61 27 51 74 53 . 22 . . 40 . 28 153 18 . 33 . 50 . . 341 32 146 82 . . . 115 4 . . Terrain Rammed . | . . . . . . . . . . . . . . . . . . . . . . . . . . . . . . . . . Walls Destroyed . | . . . . . . . . . . . . . . . . . . . . . . . . . . . . . . . . . Machines Disabled . | . . . . . . . . . . . . . . . . . . . . . . . . . . . . . . . . . Actions | -11 -10 -10 -9 -9 -8 -7 -7 -7 -7 -6 -6 -6 -6 -6 -6 -6 -5 -5 -5 -5 -5 -5 -4 -4 -4 -4 -3 -3 -3 -2 -2 -1 --------- Run | Yrd Mat Min Mat Min Mat Fac Low Low Dat Pro Fac Was Fac Low Low Zio Pro Fac Ext Cet Arc Hub Fac Upp Upp Zhi Pro Res Tes Res Qua Acc Total 33107 | 65 282 460 1546 688 2014 1118 1363 902 94 473 688 318 624 1108 925 1100 1037 2131 1478 239 767 821 2655 1766 1113 186 771 2851 1295 1245 191 793 Wait 3367 | 3 20 3 111 26 388 74 79 57 . 34 38 25 5 19 48 119 197 121 302 15 236 104 240 244 230 . 39 146 102 219 1 122 Move 26773 | 49 190 436 1230 601 1278 909 1233 818 88 415 609 251 574 977 839 954 822 1803 1007 177 465 671 2198 1429 845 163 690 2425 1011 883 160 573 Hop 4 | . . . . . . . . . . . . . . . . . . . . . 2 . . . . . . . . . . 2 Pick Up 201 | 5 11 2 27 6 20 12 1 . . 2 3 . 1 4 4 6 2 10 7 3 1 3 25 8 3 4 3 13 3 8 1 3 Fast Attach 231 | 6 3 . 9 2 8 12 1 1 1 . 2 . 4 7 4 5 . 22 9 8 4 5 25 3 3 3 2 26 11 16 5 24 Attach 109 | . 1 . 2 5 2 15 1 2 1 2 2 . 1 1 1 . . 3 11 . 4 2 15 1 2 2 . 13 8 6 1 5 Detach 95 | . 2 . 3 1 3 5 1 1 1 . 3 . . 2 1 2 . 6 9 . 4 3 9 2 2 1 . 12 8 8 2 4 Swap 330 | . 1 8 30 4 38 5 12 5 1 5 3 2 4 15 5 3 7 31 10 9 5 6 26 11 7 3 8 26 27 11 1 1 Drop 298 | . 8 2 33 3 32 15 2 1 1 3 6 . 5 11 8 6 2 22 3 11 4 4 29 9 6 6 5 26 10 18 5 2 Fire 724 | 1 45 6 78 40 161 26 . 1 . . . 40 5 54 2 . 3 16 40 7 30 17 32 22 7 . 22 15 37 17 . . Melee 768 | . . . 2 . 2 41 23 16 1 12 22 . 21 18 12 5 4 84 28 9 12 6 56 33 8 4 2 144 73 59 15 56 Ram . | . . . . . . . . . . . . . . . . . . . . . . . . . . . . . . . . . Kick . | . . . . . . . . . . . . . . . . . . . . . . . . . . . . . . . . . Crush 34 | 1 1 3 21 . 8 . . . . . . . . . . . . . . . . . . . . . . . . . . . Escape Stasis 71 | . . . . . . . . . . . . . . . . . . 13 52 . . . . . . . . . 5 . . 1 Rewire 5 | . . . . . . . . . . . . . . . . . . . . . . . . . . . . 5 . . . . Trap 97 | . . . . . 74 4 10 . . . . . 4 . 1 . . . . . . . . 4 . . . . . . . . Miscellaneous . | . . . . . . . . . . . . . . . . . . . . . . . . . . . . . . . . . Route ------- -11/Scrapyard -10/Materials (discovered 2 exits: *Mat / [*Min]) -10/Mines (discovered 3 exits: *Mat x2 / [*Exi]) -9/Materials (discovered 4 exits: *Mat x2 / *Min x2) -9/Mines (discovered 2 exits: *Mat x2) -8/Materials (discovered 3 exits: *Fac x3) -7/Factory (discovered 3 exits: *Sto / *Low x2) -7/Lower Caves -7/Lower Caves (discovered 2 exits: *Fac / *Dat) -7/Data Miner -6/Proximity Caves -6/Factory (discovered 2 exits: *Low x2) -6/Waste -6/Factory (discovered 2 exits: *Low x2) -6/Lower Caves -6/Lower Caves -6/Zion -5/Proximity Caves -5/Factory (discovered 3 exits: *Fac x2 / *Ext) -5/Extension (discovered 2 exits: *Fac / *Cet) -5/Cetus (discovered 2 exits: *Fac / *Arc) -5/Archives (discovered 3 exits: *Fac / *Hub x2) -5/Hub_04(d) (discovered 3 exits: *Fac x3) -4/Factory (discovered 3 exits: *Res x2 / *Upp) -4/Upper Caves -4/Upper Caves (discovered 2 exits: *Res / *Zhi) -4/Zhirov -3/Proximity Caves -3/Research (discovered 4 exits: *Res x3 / *Tes) -3/Testing -2/Research -2/Quarantine -1/Access (discovered 1 exit: Com) History --------- Turn | Location | Event 6 | -11/Scrapyard | Discovered new exit (range 15) 95 | -11/Scrapyard | Entered Materials 183 | -10/Materials | Discovered new exit (range 7) 304 | -10/Materials | Build established: Mutant 369 | -10/Materials | Discovered new exit (range 15) 574 | -10/Materials | Entered Mines 614 | -10/Mines | Received a Rocket Launcher from a helpful Derelict 779 | -10/Mines | Core integrity fell below 50% 816 | -10/Mines | Discovered new exit (range 16) 915 | -10/Mines | Discovered new exit (range 8) 1155 | -10/Mines | Deemed a non-threat by the Exiles lab entrance 1155 | -10/Mines | Discovered new exit (range 5) 1307 | -10/Mines | Entered Materials 1307 | -9/Materials | Evolved 2 slots: Propulsion x1, Utility x1 1308 | -9/Materials | Identified exit to Mines 1897 | -9/Materials | Build established: Scavenger-Mutant 2226 | -9/Materials | Discovered new exit (range 15) 3546 | -9/Materials | Discovered new exit (range 15) 3752 | -9/Materials | Entered Mines 3786 | -9/Mines | Assisted by bots powering up and referring to "LRC-V3" 3821 | -9/Mines | Assembled infested the area 3826 | -9/Mines | Assisted by a Guerilla fighting off Assembled 3867 | -9/Mines | Lost 3 parts (2u1w) 3872 | -9/Mines | Lost 4 allies 4129 | -9/Mines | Build established: Mutant 4218 | -9/Mines | Found a damaged Exp. Sensor Array with a note attached 4222 | -9/Mines | Found Prototype Device 4493 | -9/Mines | Discovered new exit (range 14) 4501 | -9/Mines | Destroyed 7 combat bots 4661 | -9/Mines | Discovered new exit (range 11) 4884 | -9/Mines | Entered Materials 4884 | -8/Materials | Evolved 2 slots: Utility x2 4885 | -8/Materials | Identified exit to Factory 5282 | -8/Materials | Identified Exp. Sensor Array 5516 | -8/Materials | Discovered exit to Factory (range 16) 6366 | -8/Materials | Build established: Scavenger-Mutant 6521 | -8/Materials | Repaired Imp. Light Armor Plating 6572 | -8/Materials | Repaired Cmb. Airjet 6681 | -8/Materials | Repaired Exp. Sensor Array? 6690 | -8/Materials | Build established: Mutant 6772 | -8/Materials | Repaired Cmb. Airjet 7792 | -8/Materials | Discovered exit to Factory (range 6) 8252 | -8/Materials | Central database locked down 8562 | -8/Materials | Entered Factory 8562 | -7/Factory | Evolved 2 slots: Propulsion x1, Utility x1 8583 | -7/Factory | Build established: Gladiator 9114 | -7/Factory | Destroyed 8 combat bots 9137 | -7/Factory | Core integrity fell below 50% 9170 | -7/Factory | Lost 9 parts (1p4n2u2w) 9294 | -7/Factory | Discovered new exit (range 8) 9362 | -7/Factory | First assault squad dispatched 9378 | -7/Factory | Identified exit to Storage 9378 | -7/Factory | Identified exit to Lower Caves 9731 | -7/Factory | Entered Lower Caves 10049 | -7/Lower Caves | Encountered a Warlord checkpoint 10356 | -7/Lower Caves | Learned Factory garrison access intel 10411 | -7/Lower Caves | Discovered new exit (range 13) 10430 | -7/Lower Caves | Attracted the attention of an 0b10 checkpoint 10631 | -7/Lower Caves | Identified exit to Lower Caves 10632 | -7/Lower Caves | Entered another Lower Caves area 10634 | -7/Lower Caves | Encountered a Warlord checkpoint 10635 | -7/Lower Caves | Learned Factory terminal intel 10660 | -7/Lower Caves | Discovered new exit (range 7) 10761 | -7/Lower Caves | Identified exit to Data Miner 11025 | -7/Lower Caves | Spotted B-75 Beast 11034 | -7/Lower Caves | Learned Factory security intel 11045 | -7/Lower Caves | Attracted the attention of an 0b10 checkpoint 11234 | -7/Lower Caves | Entered Data Miner 11234 | -7/Data Miner | Discovered new exit (range 6) 11247 | -7/Data Miner | Met Data Miner 11267 | -7/Data Miner | Learned location of Section 7 (-2) 11267 | -7/Data Miner | Acquired the access code to Warlord's prototype stash 11275 | -7/Data Miner | Received God Mode back door access code from Data Miner 11290 | -7/Data Miner | Identified exit to Proximity Caves 11292 | -7/Data Miner | Entered Proximity Caves 11536 | -6/Proximity Caves | Escorted by Enhanced Grunt 11536 | -6/Proximity Caves | Spotted B-75 Beast 11537 | -6/Proximity Caves | Spotter reported a threat 11568 | -6/Proximity Caves | Learned Factory security intel 11578 | -6/Proximity Caves | Discovered new exit (range 11) 11582 | -6/Proximity Caves | Identified exit to Factory 11618 | -6/Proximity Caves | Entered Factory 11618 | -6/Factory | Evolved 2 slots: Power x1, Propulsion x1 11620 | -6/Factory | Loaded intel: 26 terminal locations 11621 | -6/Factory | Loaded intel: 4 garrison access locations 11730 | -6/Factory | Identified exit to Lower Caves 12087 | -6/Factory | Sucked down chute 12087 | -6/Factory | Entered Waste 12134 | -6/Waste | Spotted C-40 Crusher 12137 | -6/Waste | Destroyed C-40 Crusher 12144 | -6/Waste | Spotted C-40 Crusher 12145 | -6/Waste | Spotted C-40 Crusher 12233 | -6/Waste | Spotted C-40 Crusher 12243 | -6/Waste | Spotted C-40 Crusher 12246 | -6/Waste | Spotted C-40 Crusher 12308 | -6/Waste | Discovered new exit (range 11) 12319 | -6/Waste | Destroyed C-40 Crusher 12342 | -6/Waste | Identified exit to Factory 12344 | -6/Waste | Entered Factory 12779 | -6/Factory | Entered Lower Caves 13317 | -6/Lower Caves | Discovered new exit (range 12) 13324 | -6/Lower Caves | Identified exit to Lower Caves 13561 | -6/Lower Caves | Entered another Lower Caves area 13568 | -6/Lower Caves | Entered a destroyed Warlord outpost 13897 | -6/Lower Caves | Discovered new exit (range 11) 13906 | -6/Lower Caves | Encountered a Warlord checkpoint 13962 | -6/Lower Caves | Learned Factory stockpile data 14156 | -6/Lower Caves | Identified exit to Zion 14156 | -6/Lower Caves | Entered Zion 14183 | -6/Zion | Found CR-A16's Pointy Stick 14190 | -6/Zion | Discovered new exit (range 16) 14212 | -6/Zion | Given the Hacking Drone Bay 14215 | -6/Zion | Found Prototype Device 14215 | -6/Zion | Identified Hacking Drone Bay 14350 | -6/Zion | Learned Factory stockpile data 14579 | -6/Zion | Met Imprinter 14588 | -6/Zion | Imprinted 14590 | -6/Zion | Declared Zion's savior 14845 | -6/Zion | Identified exit to Proximity Caves 14853 | -6/Zion | Build established: Derelict-Gladiator 14865 | -6/Zion | Entered Proximity Caves 14865 | -5/Proximity Caves | Accompanied by 4 allies 14868 | -5/Proximity Caves | Spotter reported a threat 14870 | -5/Proximity Caves | Spotter reported a threat 15138 | -5/Proximity Caves | Lost 3 allies 15199 | -5/Proximity Caves | Build established: Gladiator 15306 | -5/Proximity Caves | Received a Behemoth hack from an annoying Tinkerer 15384 | -5/Proximity Caves | Learned Factory interactive machine intel 15429 | -5/Proximity Caves | Discovered new exit (range 9) 15571 | -5/Proximity Caves | Identified exit to Factory 15571 | -5/Proximity Caves | Entered Factory 15571 | -5/Factory | Evolved 2 slots: Propulsion x1, Utility x1 15572 | -5/Factory | Identified exit to Extension 15574 | -5/Factory | Loaded intel: 56 interactive machine locations 15616 | -5/Factory | Zion Light squad teleported in 15737 | -5/Factory | Retrieved Zion intel report: Prototype Schematics 15875 | -5/Factory | Found Prototype Protection 15875 | -5/Factory | Identified Zio. Weapon Casing 16063 | -5/Factory | Fabricated Cmb. Airjet? 16067 | -5/Factory | Discovered new exit (range 7) 16071 | -5/Factory | Identified exit to Factory 16126 | -5/Factory | Repaired Cmb. Airjet 16779 | -5/Factory | Terminal network hard line cut 16812 | -5/Factory | Discovered exit to Factory (range 15) 17030 | -5/Factory | Fabricated Enh. Nova Cannon? 17059 | -5/Factory | System corruption reached 10% 17151 | -5/Factory | Entered Extension 17170 | -5/Extension | Lost 3 parts (1p1n1w) 17225 | -5/Extension | Zion Light squad teleported in 17252 | -5/Extension | Retrieved Zion intel report: Guard Positions 17321 | -5/Extension | Incoming investigation squad redirected 17354 | -5/Extension | Lost 3 parts (1p1n1u) 17441 | -5/Extension | Rescued a captive Derelict 17443 | -5/Extension | Rescued a captive Derelict 17461 | -5/Extension | Spotted B-75 Beast 17478 | -5/Extension | Lost 3 parts (1p1n1w) 17501 | -5/Extension | Disrupted transfer network 17532 | -5/Extension | Retrieved Zion intel report: Emergency Access 17549 | -5/Extension | Rescued a captive Derelict 17550 | -5/Extension | Rescued a captive Derelict 17614 | -5/Extension | Rescued a captive Derelict 17730 | -5/Extension | Build established: Scavenger-Mutant 17777 | -5/Extension | Befriended a Behemoth using the annoying Tinkerer's hack 17781 | -5/Extension | Spotted B-75 Beast 17784 | -5/Extension | Befriended a Behemoth using the annoying Tinkerer's hack 17800 | -5/Extension | Revealed the true nature of CR-A16's Pointy Stick 17897 | -5/Extension | Rescued A7 17959 | -5/Extension | Incoming investigation squad redirected 18053 | -5/Extension | Rescued a captive Derelict 18053 | -5/Extension | Rescued a captive Derelict 18125 | -5/Extension | Rescued a captive Derelict 18127 | -5/Extension | Rescued a captive Derelict 18155 | -5/Extension | Rescued a captive Derelict 18346 | -5/Extension | Retrieved Zion intel report: Active Garrisons 18347 | -5/Extension | Zion Fire squad teleported in 18351 | -5/Extension | First assault squad dispatched 18380 | -5/Extension | Incoming assault squad redirected 18517 | -5/Extension | Discovered exit to Factory (range 10) 18519 | -5/Extension | Discovered new exit (range 6) 18602 | -5/Extension | Identified exit to Cetus 18628 | -5/Extension | Terminal network hard line cut 18658 | -5/Extension | Entered Cetus 18658 | -5/Cetus | Accompanied by 16 allies (A7) 18663 | -5/Cetus | Acquired a Cetus Manufacturing Module code from A7 18692 | -5/Cetus | Spotted Cetus Guard 18692 | -5/Cetus | Spotted Cetus Guard 18694 | -5/Cetus | Spotted Cetus Guard 18695 | -5/Cetus | Spotted Cetus Guard 18702 | -5/Cetus | Allies destroyed Cetus Guard 18707 | -5/Cetus | Allies destroyed Cetus Guard 18708 | -5/Cetus | Allies destroyed Cetus Guard 18714 | -5/Cetus | Allies destroyed Cetus Guard 18738 | -5/Cetus | Lost 5 allies 18853 | -5/Cetus | Started Cetus Manufacturing Module 18871 | -5/Cetus | Escorted A7 to Cetus Mainframe 18878 | -5/Cetus | Manufactured an Enhanced Grunt 18903 | -5/Cetus | Manufactured an Enhanced Grunt 18906 | -5/Cetus | Discovered new exit (range 16) 18928 | -5/Cetus | Manufactured an Enhanced Grunt 18953 | -5/Cetus | Manufactured an Enhanced Grunt 18954 | -5/Cetus | Spotted Cetus Guard 18955 | -5/Cetus | Spotted Cetus Guard 18959 | -5/Cetus | Spotted Cetus Guard 18962 | -5/Cetus | Allies destroyed Cetus Guard 18963 | -5/Cetus | Spotted Cetus Guard 18964 | -5/Cetus | Allies destroyed Cetus Guard 18973 | -5/Cetus | Allies destroyed Cetus Guard 18976 | -5/Cetus | Allies destroyed Cetus Guard 18978 | -5/Cetus | Manufactured an Enhanced Grunt 18984 | -5/Cetus | Discovered exit to Factory (range 16) 18998 | -5/Cetus | Scared off Revision 17 19079 | -5/Cetus | Identified exit to Archives 19116 | -5/Cetus | Murdered A7 19120 | -5/Cetus | Extracted ID and sensor layout for unrecognized location from A7's data core 19127 | -5/Cetus | Entered Archives 19127 | -5/Archives | Accompanied by 13 allies 19199 | -5/Archives | Lost 3 allies 19229 | -5/Archives | Discovered exit to Factory (range 14) 19312 | -5/Archives | Discovered new exit (range 16) 19338 | -5/Archives | Discovered new exit (range 16) 19755 | -5/Archives | Identified exit to Hub_04(d) 19784 | -5/Archives | Entered Hub_04(d) 19784 | -5/Hub_04(d) | Accompanied by 10 allies 19847 | -5/Hub_04(d) | Zion Hover Resupply teleported in 19873 | -5/Hub_04(d) | Zion Hacker squad teleported in 19931 | -5/Hub_04(d) | Discovered exit to Factory (range 16) 20003 | -5/Hub_04(d) | Lost 6 allies 20054 | -5/Hub_04(d) | Discovered exit to Factory (range 15) 20058 | -5/Hub_04(d) | Zion Demo squad teleported in 20084 | -5/Hub_04(d) | First assault squad dispatched 20110 | -5/Hub_04(d) | Incoming assault squad redirected 20111 | -5/Hub_04(d) | Incoming assault squad redirected 20123 | -5/Hub_04(d) | Discovered exit to Factory (range 9) 20127 | -5/Hub_04(d) | Lost 4 allies 20170 | -5/Hub_04(d) | Network Hub disabled 20199 | -5/Hub_04(d) | Network Hub disabled 20224 | -5/Hub_04(d) | Zion Light squad teleported in 20248 | -5/Hub_04(d) | Network Hub disabled 20270 | -5/Hub_04(d) | Spotted Lightning 20276 | -5/Hub_04(d) | Entered Factory 20276 | -4/Factory | Evolved 2 slots: Utility x1, Weapon x1 20301 | -4/Factory | Discovered new exit (range 6) 20312 | -4/Factory | Identified exit to Research 20438 | -4/Factory | Retrieved Zion intel report: Component Stockpiles 20439 | -4/Factory | Zion Light squad teleported in 20515 | -4/Factory | Retrieved Zion intel report: Prototype Stockpiles 20537 | -4/Factory | Discovered new exit (range 4) 20539 | -4/Factory | Identified exit to Upper Caves 20633 | -4/Factory | Retrieved Zion intel report: Guard Positions 20644 | -4/Factory | Spotted B-86 Titan 20660 | -4/Factory | Destroyed B-86 Titan 20687 | -4/Factory | Retrieved Zion intel report: Trap Installations 20704 | -4/Factory | Discovered exit to Research (range 5) 20719 | -4/Factory | Lost 3 allies 20757 | -4/Factory | Retrieved Zion intel report: Emergency Access 20772 | -4/Factory | Retrieved Zion intel report: Unaware Analyses 20822 | -4/Factory | Incoming investigation squad redirected 20929 | -4/Factory | Fabricated Cmb. Airjet? 21006 | -4/Factory | Repaired Centrium Medium Armor Plating 21046 | -4/Factory | Repaired Imp. Propulsion Shielding? 21158 | -4/Factory | Repaired Cld. Gravmag System 21180 | -4/Factory | Build established: Mutant 21186 | -4/Factory | Repaired Lrg. Storage Unit 21264 | -4/Factory | Repaired Cmb. Airjet 21373 | -4/Factory | Repaired Centrium Medium Armor Plating? 21660 | -4/Factory | Terminal network hard line cut 21843 | -4/Factory | Entered Upper Caves 21913 | -4/Upper Caves | Learned location of Testing (-3) 21997 | -4/Upper Caves | Found Alien Artifact 22124 | -4/Upper Caves | Found Alien Artifact 22124 | -4/Upper Caves | Identified Core Expander 22124 | -4/Upper Caves | Installed Core Expander, added new Power slot 22303 | -4/Upper Caves | Attacked by a delusional Derelict stockpiling Unaware 22463 | -4/Upper Caves | Attracted the attention of an 0b10 checkpoint 22669 | -4/Upper Caves | Discovered new exit (range 8) 22671 | -4/Upper Caves | Identified exit to Upper Caves 22892 | -4/Upper Caves | Entered another Upper Caves area 22892 | -4/Upper Caves | Accompanied by 6 allies 22900 | -4/Upper Caves | Discovered exit to Research (range 10) 23031 | -4/Upper Caves | Build established: Commander-Mutant 23129 | -4/Upper Caves | Spotted B-86 Titan 23130 | -4/Upper Caves | Attracted the attention of an 0b10 checkpoint 23134 | -4/Upper Caves | Destroyed B-86 Titan 23447 | -4/Upper Caves | Learned Research emergency access door positions 23503 | -4/Upper Caves | Discovered new exit (range 13) 23552 | -4/Upper Caves | Identified exit to Zhirov 23598 | -4/Upper Caves | Entered Zhirov 23598 | -4/Zhirov | Accompanied by 4 allies 23598 | -4/Zhirov | Discovered new exit (range 4) 23607 | -4/Zhirov | Met Zhirov 23623 | -4/Zhirov | Learned location of Quarantine (-2) 23623 | -4/Zhirov | Learned location of Command (-1) 23625 | -4/Zhirov | Zhirov requested help retrieving the SGEMP Prototype 23633 | -4/Zhirov | Found Alien Artifact 23633 | -4/Zhirov | Identified Integrated Reactor 23633 | -4/Zhirov | Installed Integrated Reactor, increased core energy generation (+10) 23677 | -4/Zhirov | Found Alien Artifact 23697 | -4/Zhirov | Build established: Scavenger-Mutant 23697 | -4/Zhirov | Identified exit to Proximity Caves 23698 | -4/Zhirov | Entered Proximity Caves 23698 | -3/Proximity Caves | Accompanied by 4 allies 23754 | -3/Proximity Caves | Lost 3 allies 23904 | -3/Proximity Caves | Spotted B-86 Titan 24000 | -3/Proximity Caves | Build established: Mutant 24131 | -3/Proximity Caves | Discovered exit to Research (range 7) 24170 | -3/Proximity Caves | Entered Research 24170 | -3/Research | Accompanied by 1 ally 24170 | -3/Research | Evolved 2 slots: Propulsion x1, Utility x1 24397 | -3/Research | Found Prototype Hackware 24421 | -3/Research | Identified Exp. Hacking Suite 24502 | -3/Research | Retrieved Zion intel report: Active Terminals 24636 | -3/Research | Lost 3 parts (1p2u) 24701 | -3/Research | Destroyed 7 combat bots 24895 | -3/Research | Build established: Gladiator 24903 | -3/Research | Retrieved Zion intel report: Trap Installations 24907 | -3/Research | Repaired Com. Particle Reactor? 24984 | -3/Research | Retrieved Zion intel report: Prototype Stockpiles 24993 | -3/Research | Retrieved Zion intel report: Emergency Access 25007 | -3/Research | Spotted B-86 Titan 25023 | -3/Research | Destroyed B-86 Titan 25027 | -3/Research | Retrieved Zion intel report: Depthwide Sectors/-2 25039 | -3/Research | Found Prototype Device 25060 | -3/Research | Identified Adv. Kinecellerator 25069 | -3/Research | Retrieved Zion intel report: Prototype Schematics 25134 | -3/Research | Retrieved Zion intel report: Main Access 25134 | -3/Research | Identified exit to Research 25161 | -3/Research | Retrieved Zion intel report: Guard Positions 25162 | -3/Research | Zion Fire squad teleported in 25177 | -3/Research | Identified Dimensional Node Initializer 25177 | -3/Research | Identified Transdimensional Reconstructor 25246 | -3/Research | Build established: Scavenger-Gladiator 25460 | -3/Research | System corruption reached 10% 25484 | -3/Research | Spotted B-86 Titan 25487 | -3/Research | Destroyed B-86 Titan 25513 | -3/Research | Lost 3 allies 25526 | -3/Research | Destroyed 7 combat bots 25547 | -3/Research | Retrieved Zion intel report: Prototype Schematics 25607 | -3/Research | Retrieved Zion intel report: Prototype Schematics 25608 | -3/Research | Zion Fire squad teleported in 25644 | -3/Research | Terminal network hard line cut 25664 | -3/Research | Repaired Centrium Medium Armor Plating? 25670 | -3/Research | First assault squad dispatched 25934 | -3/Research | Discovered new exit (range 15) 25942 | -3/Research | Identified exit to Testing 25956 | -3/Research | Entered Testing 25965 | -3/Testing | Found Prototype Device 25968 | -3/Testing | Identified Exp. Hardlight Generator 26154 | -3/Testing | Found Prototype Protection 26154 | -3/Testing | Identified Hvy. Regenerative Plating 26362 | -3/Testing | Found Prototype Device 26381 | -3/Testing | Build established: Gladiator 26383 | -3/Testing | Identified AEGIS Remote Shield 26408 | -3/Testing | Retrieved Zion intel report: Component Schematics 26418 | -3/Testing | Retrieved Zion intel report: Guard Positions 26456 | -3/Testing | First assault squad dispatched 26469 | -3/Testing | Retrieved Zion intel report: Emergency Access 26473 | -3/Testing | Spotted PG-X1NH006MZN 26483 | -3/Testing | Fabricated Exp. Sensor Array? 26486 | -3/Testing | Spotted Striker 26486 | -3/Testing | Spotted Striker 26512 | -3/Testing | Spotted Alpha 7 26551 | -3/Testing | Destroyed Striker 26559 | -3/Testing | Destroyed Striker 26643 | -3/Testing | Destroyed Alpha 7 26673 | -3/Testing | Lost 4 parts (2p2u) 26694 | -3/Testing | Incoming assault squad redirected 26728 | -3/Testing | Crushed by falling debris 26729 | -3/Testing | Core integrity fell below 50% 26737 | -3/Testing | Incoming investigation squad redirected 26772 | -3/Testing | Spotted PD-V5ZRCC5Q66 26790 | -3/Testing | Found Prototype Launcher 26795 | -3/Testing | Retrieved Zion intel report: Active Garrisons 26806 | -3/Testing | Build established: Mutant 26810 | -3/Testing | Retrieved Zion intel report: Unaware Schematics 26819 | -3/Testing | Identified Tactical Quantum Warhead 26849 | -3/Testing | Scanned by Researcher 26879 | -3/Testing | Warped through subspace 26921 | -3/Testing | Discovered exit to Research (range 10) 26927 | -3/Testing | Entered Research 26927 | -2/Research | Evolved 2 slots: Propulsion x1, Utility x1 26950 | -2/Research | Found Prototype Device 26999 | -2/Research | Identified Adv. EM Shield 27027 | -2/Research | Zion Infowar Resupply teleported in 27105 | -2/Research | Zion Zionite Resupply teleported in 27177 | -2/Research | First assault squad dispatched 27201 | -2/Research | Incoming assault squad redirected 27261 | -2/Research | Found Prototype Device 27313 | -2/Research | Identified Exp. Thermal Shield 27443 | -2/Research | Incoming assault squad redirected 27491 | -2/Research | Found Prototype Launcher 27675 | -2/Research | Identified Enh. Gamma Bomb Array 27714 | -2/Research | System corruption reached 10% 27809 | -2/Research | Discovered new exit (range 15) 27845 | -2/Research | Identified exit to Quarantine 27846 | -2/Research | Entered Quarantine 27852 | -2/Quarantine | Spotted Alpha 7 27883 | -2/Quarantine | Found Powered Armor 27936 | -2/Quarantine | Found Prototype Processor 27936 | -2/Quarantine | Identified Exp. Core Analyzer 27961 | -2/Quarantine | Lost 3 parts (1p1n1w) 27968 | -2/Quarantine | Incoming investigation squad redirected 27977 | -2/Quarantine | Discovered new exit (range 8) 27988 | -2/Quarantine | Identified exit to Access 27989 | -2/Quarantine | Entered Access 27989 | -1/Access | Evolved 2 slots: Utility x2 28021 | -1/Access | Zion Melee Resupply teleported in 28237 | -1/Access | Lost 5 parts (2n3u) 28261 | -1/Access | Retrieved Zion intel report: Active Garrisons 28262 | -1/Access | Zion Hacker squad teleported in 28359 | -1/Access | Incoming investigation squad redirected 28394 | -1/Access | System corruption reached 10% 28465 | -1/Access | Lost 12 parts (3p6n2u1w) 28510 | -1/Access | Identified exit to Command 28552 | -1/Access | System Shield fried by hacking feedback 28590 | -1/Access | Core integrity fell below 50% 28619 | -1/Access | Core integrity fell below 20% 28622 | -1/Access | Destroyed by S-43 Plague with Heavy Machine Gun Last Messages --------------- 28575_ ALERT: Suspicious activity at Garrison Access A005. Dispatching Investigation squad. 28576_ System corrupted: Energy discharge (-20). 28576_ Slug penetrates H-88 Terminator. 28576_ H-88 Terminator suffers critical hit (Destroy). 28576_ H-88 Terminator destroyed. 28576_ Penetrated by Slug. 28593_ Exp. Sensor Array destroyed. 28595_ S-43 Plague destroyed. 28598_ Kinetic Spear destroyed. 28599_ Acquired 22 matter. 28602_ Nanosword destroyed. 28603_ Acquired Xenon Bombardment Thruster. 28610_ Xenon Bombardment Thruster destroyed. 28613_ System corrupted: Energy discharge (-23). 28616_ Xenon Bombardment Thruster destroyed. 28617_ Cmb. Linear Gravjet destroyed. 28618_ Xenon Bombardment Thruster destroyed. 28619_ Penetrated by Slug. 28620_ Slug penetrates Wall. Map ----- +----------------------------------------------------+ | ?????????????????????????????????????# ^ !%[ | | ?????????????????????????????????????# =## | | ?????????????????????????????????????# ! "" | | ?????????????????????????????????##### !!! "" | | ???????????????????????????????? !! G | | ???????????????????????????????? !! "" | | ???????????????????????????????? "" | | ???????????????????????????????? ## | | ???????????????????????????????? ## | | ?????????????????????????????????###### ##### | | ??????????????????????????????????????# ????# | | ???????????????????????????? ????????#?????# | | ??????????????????????????? #?????????????# | | ??????????????????????????? #?????????????# | | ??????????????????????????? #?????????????# | | ??????????????????######### #####????+##### | | ?????????????????? u h u # ???? ## | | ??????????????????? # ???? ## | | ???????????????????? # ????"" ## | | ????????????????????? # """""" ## | | ????????????????????? # """""" ## | | ?????????????????????? # """""" ## | | ??????????????????????? s # """""" ## | | ???????????????????????#s # ## | | ???????????????????????# # ## | | ???????????????????????# @ # *## | | ???????????????????????# ss # %/ | | ???????????????????????# # =% ## | | ???????????????????????# # * ## | | ???????????????????????# s###+########## | | ???????????????????????# s | | ???????????????????????# s s | | ???????????????????????# | | ???????????????????????# ss | | ???????????????????????# sss | | ???????????????????????# | | ???????????????????????# | | ???????????????????????###########+########## | | ????????????????????????????# #??? | | ????????????????????????????# #??? | | ????????????????????????????# "" #??? ?? | | ????????????????????????????# "" #???????? | | ????????????????????????????# """""" #???????? | | ????????????????????????????# """""" #???????? | | ????????????????????????????# "" #???????? | | ????????????????????????????# "" #???????? | | ????????????????????????????# ? ?? #???????? | | ????????????????????????????#? ??? #???????? | | ?????????????????????????????????? #???????? | | ?????????????????????????????????? #???????? | +----------------------------------------------------+ Best States ------------- Heat Dissipation 142 Energy Generation 65 Energy Capacity 1050 Matter Stores 300 Matter Capacity 300 Sight Range 16 Robot Scan Range 20 Terrain Scan Density 10 ECM Strength 2 Jamming Range 16 Corruption Containment 12 Armor Coverage 1000 Resistance: TH 10 Resistance: EM 50 Core Shielding 20 Propulsion Shielding 90 Weapon Shielding 90 Melee Speed Boost 30 Phase Shifting 5 Evasion (%) 68 Targeting Accuracy 6 Melee Accuracy 6 Target Analysis 8 Core Analysis 6 Recoil Reduction 6 Matter Filtering 50 Offensive Hacking 12 Defensive Hacking 10 Authchip Count 1 Trap Extractor Capacity 4 Item Schematics ----------------- Hcp. Storage Unit | -10/Materials | Hacked Cmb. Airjet | -8/Materials | Scanalyzed Combat Drone Bay | -7/Data Miner | Free Lgt. Regenerative Plating | -7/Data Miner | Free Cld. Cesium-ion Thruster | -7/Data Miner | Free Exp. Propulsion Shielding | -7/Data Miner | Free Imp. Heavy Machine Gun | -7/Data Miner | Free Nuclear Pulse Array | -7/Data Miner | Free Imp. Launcher Guidance Computer | -7/Data Miner | Free Disruptor Cannon | -7/Data Miner | Free Jamming Amplifier | -7/Data Miner | Free Imp. Dynamic Insulation System | -7/Data Miner | Free Hvy. Gauss Cannon | -7/Data Miner | Free Hvy. Siege Treads | -7/Data Miner | Free Magnetic Acceleration Cannon | -6/Zion | Archive Adv. Hacking Suite | -6/Zion | Archive Imp. Reaction Control System | -6/Zion | Archive Flexi-carbon Leg | -6/Zion | Archive Neutrino Core | -6/Zion | Archive Adv. Signal Interpreter | -6/Zion | Archive HERF Cannon | -6/Zion | Archive Adv. Thermal Generator | -6/Zion | Archive Arm. Leg | -6/Zion | Archive Lrn. Proton Cannon | -6/Zion | Archive Lgt. Angular Momentum Engine | -6/Zion | Archive Hyp. Coil Gun | -6/Zion | Archive Imp. Arc Projector | -6/Zion | Archive Enh. Optical Array | -6/Zion | Archive Prc. Rocket Launcher | -5/Factory | Z-intel Hvy. Proton Missile Launcher | -5/Factory | Z-intel Enh. Fission Core | -5/Factory | Z-intel Com. Ion Cannon | -5/Factory | Z-intel Enh. Armored Leg | -5/Factory | Z-intel Prc. Matter Filter | -5/Factory | Z-intel Mni. Smartbomb Launcher | -5/Factory | Z-intel Lgt. Neutrino Core | -5/Factory | Z-intel Cld. Nuclear Pulse Thruster | -5/Factory | Z-intel Gravity Neutralizer | -5/Factory | Z-intel Cld. Airjet | -5/Factory | Z-intel Enh. Coil Gun | -5/Factory | Z-intel Assault Drone Bay | -4/Zhirov | Free Exp. Heat Sink | -4/Zhirov | Free Exp. Optical Array | -4/Zhirov | Free Imp. Arc Thrower | -4/Zhirov | Free Prc. Energy Filter | -3/Research | Z-intel Cld. Antimatter Reactor | -3/Research | Z-intel Hellfire Missile Launcher | -3/Research | Z-intel Exp. Target Analyzer | -3/Research | Z-intel Hvy. Neutron Cannon | -3/Research | Z-intel Prc. Phase Gun | -3/Research | Z-intel Enh. Flexi-carbon Leg | -3/Research | Z-intel Exp. Thermal Defense Suite | -3/Research | Z-intel Centrium Medium Armor Plating | -3/Research | Scanalyzed Exp. Sensor Array | -3/Research | Z-intel Exp. Cooling System | -3/Research | Z-intel Imp. Energy Well | -3/Research | Z-intel Cld. Phase Cannon | -3/Research | Z-intel Gravity Flail | -3/Research | Z-intel Imp. Diametric Drive | -3/Research | Z-intel Exp. Coolant Injector | -3/Research | Z-intel Cld. Field Propulsion Drive | -3/Research | Z-intel Coolant Network | -3/Research | Z-intel Exp. Core Shielding | -3/Research | Z-intel Hvy. Hardcell Cannon | -3/Research | Z-intel Spectral Analyzer | -3/Research | Z-intel Com. Particle Reactor | -3/Research | Z-intel Imp. Matter Neutralizer | -3/Research | Z-intel Hvy. Gatling Laser | -3/Research | Z-intel Ionic Axe | -3/Research | Z-intel Enh. Biometal Leg | -3/Research | Z-intel Kinetic Spear | -3/Research | Z-intel Hds. Centrium Wheel | -3/Research | Z-intel Cld. Phase Gun | -3/Research | Z-intel Centrium Heavy Armor Plating | -3/Research | Z-intel Imp. System Restoration Module | -3/Testing | Z-intel Lgt. Particle Reactor | -3/Testing | Z-intel Imp. Armor Integrity Analyzer | -3/Testing | Z-intel Linear Gravjet | -3/Testing | Z-intel Imp. Thunder Leg | -3/Testing | Z-intel Adv. Force Field | -3/Testing | Z-intel Adv. Target Analyzer | -3/Testing | Z-intel Fusion Bomb Launcher | -3/Testing | Z-intel Force Field | -3/Testing | Z-intel Med. Storage Unit | -3/Testing | Z-intel Graphene Brace | -3/Testing | Z-intel Adv. Targeting Computer | -3/Testing | Z-intel Imp. Gyrokinetic Inverter | -3/Testing | Z-intel Melee Analysis Suite | -3/Testing | Z-intel Adv. Salvage Targeting Computer | -3/Testing | Z-intel Exp. Gyrokinetic Inverter | -2/Quarantine | Archive Robot Schematics ------------------ E-15 Imp | -7/Data Miner | Free R-10 Processor | -7/Data Miner | Free B-48 Gladiator | -7/Data Miner | Free M-22 Extractor | -7/Data Miner | Free H-66 Slayer | -7/Data Miner | Free G-50 Soldier | -6/Zion | Archive T-07 Excavator | -6/Zion | Archive G-47 Trooper | -6/Zion | Archive H-77 Assassin | -6/Zion | Archive A-02 Transporter | -3/Testing | Archive C-55 Analyst | -3/Testing | Z-intel S-43 Plague | -3/Testing | Z-intel A-15 Conveyor | -3/Testing | Z-intel G-67 Veteran | -3/Testing | Z-intel B-74 Champion | -3/Testing | Z-intel Fabricated ------------ Cmb. Airjet | x2 | -5/Factory Enh. Nova Cannon | x2 | -5/Factory | Preloaded Cmb. Airjet | x2 | -4/Factory | Authchip Exp. Sensor Array | x1 | -3/Testing Repaired ---------- Imp. Light Armor Plating | 2% | -8/Materials Cmb. Airjet | 64% | -8/Materials Exp. Sensor Array | 62% | -8/Materials Cmb. Airjet | 81% | -8/Materials Cmb. Airjet | 11% | -5/Factory Centrium Medium Armor Plating | 27% | -4/Factory Imp. Propulsion Shielding | 17% | -4/Factory Cld. Gravmag System | 32% | -4/Factory Lrg. Storage Unit | 26% | -4/Factory Cmb. Airjet | 62% | -4/Factory Centrium Medium Armor Plating | 52% | -4/Factory Com. Particle Reactor | 3% | -3/Research Centrium Medium Armor Plating | 31% | -3/Research Alien Tech Used ----------------- Core Expander Integrated Reactor Transdimensional Reconstructor Achievements -------------- None Challenges ------------ None Game ------ Seed BottomlessDefenseNanosword Manual? 0 Play Time 04:15:07 Cumulative 1899.8 hours Start 2025.07.14 @ 02:20:45 End 2025.07.15 @ 02:47:39 Sessions 5 Manual Loads 0 Difficulty Rogue Special Mode None Game No. 1253 Rogue 1249 Adventurer 4 Explorer 0 Win Type - Total 246 Types 183/12/19/10/3/1/4/9/4/1 Lore% 98 Gallery% 94 Achievement% 98 Wizard Run 0 Options --------- Layout 2 ASCII 0 Keyboard 1 Movement Vi Keybinds 0 Fullscreen 0 Font 24/Terminus Map View 59x48 Zoom Use 0% Tactical HUD 1 Map Filters NONE Filters NONE Steam 1 RUN: 8cf09293-4ca4-40dd-8a84-405d56f48368